Cogmind - Beta 16 @@@ ROGUE MODE // 2025.11.24 @ 04:08:59 Player: H3-MLN Result: Destroyed by Striker with Compact Linear Accelerator Performance ------------- Evolutions (9) 4500 Regions Visited (30) 6000 Robots Destroyed (604) 3020 Value Destroyed (38570) 38570 Prototype IDs (171) 3420 Alien Tech Used (6) 1200 Bonus (41314) 41314 TOTAL SCORE: 98024 Bonus ------- Triggered High Security 2000 High Alert Combat Kills 17175 Follower Combat Kills 12189 Destroyed Unchained 1000 Entered Garrisons 800 Used RIF Installer 2500 Entered DSFs 500 Network Hubs Disabled 200 Registered with UFD 300 Built Enhanced Grunts 300 A7 Reached Mainframe 300 Met R17 at Cetus 500 Met R17 at Research 2000 Scanned by Researcher 500 Destroyed MAIN.C Guards 500 Met MAIN.C 5000 Friendly Fire -4450 Cogmind --------- Core Integrity 0/1600 Matter 149/300 Energy 42/100 System Corruption 10% Temperature Cool (0) Movement Flying (35) Location -1/Command Parts ------- > --- POWER (3) -------- (None) > --- PROPULSION (6) --- Cesium-ion Thruster > --- UTILITY (13) ----- Concept Phasing Heat Sink Graphene Brace > --- WEAPON (3) ------- (None) > --- INVENTORY (5) ---- Concept Zero-point Core Concept Chromion Battery (800) Concept Matter Streamer IN-MT5's Pitchfork "Insurrection" (18) Peak State ------------ > --- POWER ------------ Concept Zero-point Core Concept Zero-point Core Concept Zero-point Core > --- PROPULSION ------- Experimental Armored Exoskeleton Concept Biometal Exoskeleton > --- UTILITY ---------- Concept Phasing Heat Sink Concept Antigrav Storage Unit Spectral Analyzer Experimental Active Sensor Suite Concept Weapon Articulator Experimental Core Analyzer Concept Cloak Mesh Concept Cloak Mesh Concept RG22 Armor Graphene Brace Concept Network Penetrator Concept Network Penetrator > --- WEAPON ----------- Helical Railgun Concept Miniperforator Concept Deflector Sword > --- INVENTORY -------- Improved Quantum Reactor Enhanced Biometal Leg Experimental Armored Exoskeleton Concept Phasing Heat Sink Concept Thermoelectric Network Concept Chromion Battery Concept NT7 Matterbank Experimental Core Analyzer Mini Quantum Capacitor Experimental Weapon Cycler Femtoactuators Concept Reaction Jets Concept Antimissile System Concept Matter Streamer Concept Plasma Driver Cooled Directed Potential Cannon Concept Smart ZDS IN-MT5's Pitchfork "Insurrection" IN-MT5's Pitchfork "Insurrection" Concept Blasthammer [Rating: 309] Favorites ----------- Power Subdweller Power Source Engine Subdweller Power Source Power Core Hybrid Fission Core Reactor Hybrid Antimatter Reactor Propulsion Aluminum Leg Leg Aluminum Leg Flight Unit Cesium-ion Thruster Utility High-capacity Storage Unit Device Graphene Brace Storage High-capacity Storage Unit Processor Enhanced Optical Array Hackware Relay Coupler [NC] Protection Centrium Medium Armor Plating Weapon Makeshift Hammer Energy Gun Heavy Gatling Laser Energy Cannon Subdweller Beam Cannon Ballistic Gun Assault Rifle Ballistic Cannon Mini Assault Cannon Launcher Guided EMP Blaster Special Weapon Improved Remote Datajack Impact Weapon Makeshift Hammer Slashing Weapon Concept Deflector Sword Piercing Weapon Experimental Jetlance Special Melee Weapon Datajack Build | -11 -10 -10 -9 -9 -6 -6 -6 -6 -5 -5 -5 -5 -5 -5 -5 -5 -4 -4 -4 -4 -4 -4 -4 -3 -3 -2 -2 -2 -1 -1 ------- Run | Yrd Mat Sub Rec Scr Fac Was Fac DSF Fac Gar Fac Gar Fac Gar Fac Gar Fac Was Fac Ext Cet Arc Hub Res Tes Res Qua Frg Acc Com Slots Evolved 18 | . . . . . 8 . . . 2 . . . . . . . 2 . . . . . . 2 . 2 . . 2 . Power 2 | . . . . . 1 . . . . . . . . . . . . . . . . . . . . 1 . . . . Propulsion 4 | . . . . . 3 . . . . . . . . . . . . . . . . . . 1 . . . . . . Utility 11 | . . . . . 4 . . . 2 . . . . . . . 2 . . . . . . 1 . 1 . . 1 . Weapon 1 | . . . . . . . . . . . . . . . . . . . . . . . . . . . . . 1 . Parts Attached 441 | 7 4 18 1 7 52 . . 8 6 11 12 6 3 16 11 20 6 2 8 10 3 3 8 22 28 17 32 101 12 7 Power 61 | 1 . 1 1 . 6 . . 1 . . 2 1 . 1 2 6 . . 2 1 1 2 3 . 2 3 8 14 2 1 Engine 12 | 1 . 1 1 . 3 . . 1 . . . . . . 1 . . . . . . 1 2 . . . . 1 . . Core 20 | . . . . . 3 . . . . . 1 1 . 1 1 5 . . 2 1 . 1 . . . . . 4 . . Reactor 29 | . . . . . . . . . . . 1 . . . . 1 . . . . 1 . 1 . 2 3 8 9 2 1 Propulsion 80 | 2 . 4 . 1 13 . . 1 1 2 2 1 2 . . 3 1 . . 3 . 1 1 2 3 6 9 18 1 3 Treads . | . . . . . . . . . . . . . . . . . . . . . . . . . . . . . . . Leg 79 | 2 . 4 . 1 13 . . 1 1 2 2 1 2 . . 3 1 . . 3 . 1 1 2 3 6 9 18 1 2 Wheel . | . . . . . . . . . . . . . . . . . . . . . . . . . . . . . . . Hover . | . . . . . . . . . . . . . . . . . . . . . . . . . . . . . . . Flight 1 | . . . . . . . . . . . . . . . . . . . . . . . . . . . . . . 1 Utility 209 | 2 2 3 . 5 23 . . 5 5 6 4 4 1 13 9 8 3 1 6 5 2 . 3 13 16 6 9 49 5 1 Device 89 | 1 1 2 . 2 7 . . 1 2 1 2 . . 5 4 2 1 1 4 2 . . 2 7 8 2 4 25 3 . Storage 21 | 1 1 1 . . 3 . . 2 1 2 . . . . . 1 1 . . . . . . 1 1 2 . 4 . . Processor 31 | . . . . 1 6 . . 1 . . . . . 1 1 1 . . . . . . . 1 5 . 3 10 . 1 Hackware 26 | . . . . 2 2 . . 1 2 2 1 1 1 2 2 2 1 . 1 . . . 1 2 1 . . . 2 . Protection 42 | . . . . . 5 . . . . 1 1 3 . 5 2 2 . . 1 3 2 . . 2 1 2 2 10 . . Artifact . | . . . . . . . . . . . . . . . . . . . . . . . . . . . . . . . Weapon 91 | 2 2 10 . 1 10 . . 1 . 3 4 . . 2 . 3 2 1 . 1 . . 1 7 7 2 6 20 4 2 Energy Gun 9 | . 1 3 . . . . . . . . 1 . . . . . . . . . . . . 1 3 . . . . . Energy Cannon 20 | . . 1 . . 1 . . . . 1 1 . . . . . 1 1 . . . . 1 3 2 2 1 3 1 1 Ballistic Gun 16 | 2 1 4 . . 1 . . . . . . . . . . 1 . . . . . . . . 1 . 2 3 1 . Ballistic Cannon 9 | . . . . . 2 . . . . 1 . . . 1 . 1 1 . . . . . . . . . 1 2 . . Launcher 9 | . . 1 . . 1 . . 1 . . 1 . . . . . . . . . . . . . 1 . . 4 . . Special Weapon 11 | . . . . 1 2 . . . . 1 1 . . . . 1 . . . . . . . 2 . . . 1 1 1 Impact Weapon 6 | . . 1 . . . . . . . . . . . . . . . . . . . . . 1 . . 1 2 1 . Slashing Weapon 8 | . . . . . 2 . . . . . . . . 1 . . . . . 1 . . . . . . 1 3 . . Piercing Weapon 2 | . . . . . . . . . . . . . . . . . . . . . . . . . . . . 2 . . Special Melee Weapon 1 | . . . . . 1 . . . . . . . . . . . . . . . . . . . . . . . . . Unidentified Prototypes 60 | . . . . . 4 . . . 1 . 1 . . . 1 . . . 1 . 1 1 5 3 12 1 12 16 1 . Corrupted Parts 5 | . . . . 2 . . . 1 . . . . . . . . . . . . . . . . . . . 2 . . System Corruption 21 | . . . . 6 . . . 7 . . . . . . . . . . . . . . . . . . . 8 . . Parts Lost 92 | . . 1 . . 2 . . . . . . . . 3 2 7 2 . 1 . . 1 4 . 7 3 3 34 6 16 Power 17 | . . . . . . . . . . . . . . . 1 2 . . . . . . . . 2 1 2 5 1 3 Propulsion 16 | . . . . . . . . . . . . . . . 1 1 . . . . . . 1 . . 1 . 8 1 3 Utility 39 | . . 1 . . 2 . . . . . . . . 3 . 3 2 . 1 . . 1 1 . 4 1 1 13 1 5 Weapon 20 | . . . . . . . . . . . . . . . . 1 . . . . . . 2 . 1 . . 8 3 5 Highest Loss Streak 10 | . . 1 . . 2 . . . . . . . . 1 1 4 1 . 1 . . 1 2 . 2 1 2 10 2 6 To Critical Strikes . | . . . . . . . . . . . . . . . . . . . . . . . . . . . . . . . Average Backups 18 | 1 7 9 22 21 13 14 15 15 14 17 18 18 17 17 17 18 18 18 18 19 19 18 18 18 18 19 19 21 18 12 Power . | . . . 1 . . . . . . . 1 1 1 . . . 1 1 . . . . . . . . . . . 1 Propulsion 1 | . . 1 2 1 1 1 2 . . . 1 1 1 1 . . 1 1 1 1 1 1 . . . . . . 1 1 Utility 8 | . 3 3 11 11 5 5 6 7 7 8 8 7 6 5 7 8 8 8 7 9 9 8 10 11 8 9 7 12 10 5 Weapon 5 | . 2 2 7 6 4 5 5 5 4 6 5 5 6 7 6 5 5 6 7 6 6 5 4 4 7 7 6 6 5 4 Tool/Special . | . . . . . . . . . . . . . . . . . . . . . . . . . . . . . . . Unused Backups 79 | . 6 4 1 15 8 1 . 1 1 2 1 2 . 2 . 4 . 1 1 1 1 . 1 2 5 3 1 14 . 1 Power 7 | . 1 . . . 3 . . . . . 1 . . . . . . . . . . . . . . . 1 1 . . Propulsion 8 | . . . . 1 1 1 . 1 . . . . . . . . . . . 1 . . 1 1 . . . 1 . . Utility 42 | . 3 3 1 8 . . . . 1 2 . 2 . 2 . 4 . 1 . . 1 . . 1 3 1 . 8 . 1 Weapon 20 | . 2 1 . 5 4 . . . . . . . . . . . . . 1 . . . . . 2 1 . 4 . . Tool/Special 2 | . . . . 1 . . . . . . . . . . . . . . . . . . . . . 1 . . . . Average Slot Usage (%) 88 | . 99 96 85 83 92 100 100 100 99 97 98 100 95 86 87 85 87 88 88 88 85 88 87 87 88 89 95 86 79 62 Engine 5 | . 14 14 14 12 4 6 6 6 5 5 2 . . . . . . . . . . . 5 3 4 2 . . . . Core 2 | . . . . . 7 6 6 6 5 5 7 5 5 7 10 8 5 5 5 5 . . . . . . . 1 10 6 Reactor 2 | . . . . . . . . . . . . 5 5 2 . 1 5 5 5 5 9 9 5 5 3 7 12 7 1 2 Leg 23 | . 27 28 28 27 32 33 33 33 29 29 29 29 24 17 16 16 15 15 15 14 15 15 14 18 19 18 25 17 8 7 Device 14 | . 13 10 . . 8 13 13 3 13 11 11 15 16 20 22 22 25 30 26 26 26 25 21 20 19 20 24 21 25 26 Storage 7 | . 14 14 14 12 5 6 6 7 5 5 5 5 5 6 5 5 5 5 5 5 5 5 5 4 4 4 5 4 4 5 Processor 8 | . . . . . 17 13 13 18 17 17 17 17 17 13 5 10 10 10 10 10 10 10 10 11 11 11 11 13 7 4 Hackware 2 | . . . . 1 1 . . 3 3 4 5 1 . . 3 . 4 5 5 5 5 5 9 9 10 8 4 . 6 1 Protection 3 | . . . . . 3 6 6 4 5 5 5 5 5 4 6 4 4 . 3 5 5 5 5 4 4 5 4 8 4 3 Energy Gun 1 | . . 8 . . . . . . . . 2 4 5 2 2 1 . . . . . . . . 1 1 . . . . Energy Cannon 5 | . . 5 14 12 2 6 6 6 5 3 4 5 3 3 4 3 4 4 5 4 1 5 3 3 5 2 . 1 3 1 Ballistic Gun 1 | . 27 10 . . . . . . . . . . . . . . . . . . . . . . . . 1 1 . . Impact Weapon 3 | . . 3 14 14 . . . . . . . . . . . . . . . . . . . . . . . . 1 . Peak Build Rating 309 | 7 9 18 21 24 78 80 80 81 95 101 110 110 113 118 105 110 115 122 123 119 130 130 128 146 164 179 207 287 309 303 Average Rating 96 | 5 8 12 20 20 69 79 80 78 90 95 100 106 110 111 98 102 112 121 116 116 125 126 121 137 147 162 190 227 301 242 On Entrance 105 | . 7 9 18 21 16 78 80 80 78 95 99 107 109 111 106 98 108 108 122 115 118 130 123 109 146 145 173 207 274 293 Avg Prop Armor Cover (%) 23 | . . . . 33 31 . . . . . . . . . 14 . . 25 . . . 18 . . . . . 1 . 44 Naked Turns . | . . . . . . . . . . . . . . . . . . . . . . . . . . . . . . . Heaviest Build 216 | 14 21 216 216 216 79 69 69 68 76 106 106 108 108 128 98 109 93 84 101 108 113 125 115 105 104 106 128 162 111 118 Greatest Support 180 | 20 20 20 20 25 96 96 96 96 99 112 120 112 120 106 103 98 93 93 109 100 100 103 108 138 138 174 169 180 158 158 Greatest Overweight (x) 41 | . 1 10 10 10 . . . . . . . . . 1 1 1 1 27 1 1 1 41 1 . . . 1 1 . . Average Overweight (x) . | . . 1 10 4 . . . . . . . . . . . . . 4 . . . 5 . . . . . . . . Largest Inventory Capacity 35 | 8 10 35 35 35 15 15 15 15 15 20 20 20 20 20 20 20 20 20 20 20 20 20 20 20 20 20 20 25 25 25 Average Capacity 22 | 6 8 15 35 31 14 15 15 15 15 18 20 20 20 20 20 20 20 20 20 20 20 20 20 20 20 20 20 22 25 21 Most Carried 29 | 4 9 20 29 29 15 15 15 15 15 20 20 20 20 20 20 20 20 20 20 20 20 20 20 20 20 20 20 25 25 22 Average Carried 19 | 1 7 11 26 24 13 14 15 14 14 17 19 19 19 19 19 19 19 19 19 19 19 19 19 19 19 19 19 22 23 13 Final Capacity 35 | 8 10 35 35 5 15 15 15 15 15 20 20 20 20 20 20 20 20 20 20 20 20 20 20 20 20 20 20 25 25 5 Final Carried 29 | 4 9 20 29 5 15 15 15 15 15 20 18 20 20 20 19 20 20 20 20 20 20 20 20 20 20 20 20 25 22 4 Class Distribution -------------------- 24% | Hauler-Mutant 18% | Scavenger-Mutant 15% | Mutant 14% | Bothacker-Mutant 8% | Commander-Mutant 6% | Scavenger-Skirmisher 4% | Scavenger-Assassin Dominant Class ---------------- Mutant | -10/Materials Mutant | -10/Subcaves Hauler-Mutant | -9/Recycling Hauler-Mutant | -9/Scraptown Scavenger-Mutant | -6/Factory Scavenger-Mutant | -6/Waste Scavenger-Mutant | -6/Factory Mutant | -6/DSF Skirmisher | -5/Factory Scavenger-Mutant | -5/Garrison Scavenger-Skirmisher | -5/Factory Scavenger-Skirmisher | -5/Garrison Commander-Skirmisher | -5/Factory Scavenger-Mutant | -5/Garrison Commander-Mutant | -5/Factory Scavenger-Mutant | -5/Garrison Bothacker-Skirmisher | -4/Factory Bothacker-Mutant | -4/Waste Bothacker-Mutant | -4/Factory Commander-Mutant | -4/Extension Commander-Mutant | -4/Cetus Commander-Mutant | -4/Archives Bothacker-Mutant | -4/Hub_04(d) Scavenger-Skirmisher | -3/Research Bothacker-Mutant | -3/Testing Bothacker-Mutant | -2/Research Scavenger-Assassin | -2/Quarantine Scavenger-Mutant | -2/Protoforge Wizard-Assassin | -1/Access Scavenger-Mutant | -1/Command Resources | -11 -10 -10 -9 -9 -6 -6 -6 -6 -5 -5 -5 -5 -5 -5 -5 -5 -4 -4 -4 -4 -4 -4 -4 -3 -3 -2 -2 -2 -1 -1 ----------- Run | Yrd Mat Sub Rec Scr Fac Was Fac DSF Fac Gar Fac Gar Fac Gar Fac Gar Fac Was Fac Ext Cet Arc Hub Res Tes Res Qua Frg Acc Com Matter Collected 26919 | 228 517 510 53 60 1419 380 . 210 648 726 483 348 100 1286 827 1156 213 122 167 603 165 154 551 1137 1034 1144 998 7645 3807 228 Remotely 2373 | . . . . . 20 . . . . . . . . . . . 85 . . . . . . . . . . 456 1812 . Salvage Created 29260 | 28 184 328 . 26 2161 1206 . 325 252 731 771 681 53 1029 764 998 469 136 161 338 244 471 582 849 1412 1148 2060 6122 5492 239 Parts 1336 | 6 17 17 . . 94 1 . 17 9 40 44 33 2 42 40 44 16 4 10 18 15 33 23 20 63 54 94 321 251 8 Haulers Intercepted 12 | . 2 . . . 6 . . . . . 1 . . . . . . . . . . . 1 . . 1 1 . . . Recyclers Shooed 12 | . 1 . . . 2 . . . 1 . 3 . . . . . . . . . . . 1 1 . 2 . . 1 . Parts Field Recycled 1 | . . . . 1 . . . . . . . . . . . . . . . . . . . . . . . . . . Retrieved Matter 100 | . . . . 100 . . . . . . . . . . . . . . . . . . . . . . . . . . Parts Self-Destructed 11 | . . 11 . . . . . . . . . . . . . . . . . . . . . . . . . . . . Prevented . | . . . . . . . . . . . . . . . . . . . . . . . . . . . . . . . Parts Restored 18 | . . . . . . . . . . . . . . . . . . . . . . . . . . . . 18 . . Faulty 18 | . . . . . . . . . . . . . . . . . . . . . . . . . . . . 18 . . Kills | -11 -10 -10 -9 -9 -6 -6 -6 -6 -5 -5 -5 -5 -5 -5 -5 -5 -4 -4 -4 -4 -4 -4 -4 -3 -3 -2 -2 -2 -1 -1 ------- Run | Yrd Mat Sub Rec Scr Fac Was Fac DSF Fac Gar Fac Gar Fac Gar Fac Gar Fac Was Fac Ext Cet Arc Hub Res Tes Res Qua Frg Acc Com Combat Hostiles Destroyed 487 | . 6 11 . . 17 5 . 6 3 18 11 17 1 30 26 28 7 . 4 4 3 1 8 21 17 13 19 118 87 6 Melee 45 | . . . . . 9 . . . . . . . . . . . . . . . . . . . . . 3 31 2 . Guns 54 | . 6 4 . . . . . . . . 3 . 1 3 4 3 . . . . . . . . . 1 8 21 . . Cannons 174 | . . 1 . . 7 . . 3 2 5 5 7 . 14 3 10 1 . 4 3 . 1 5 4 7 5 1 26 58 2 AOE 165 | . . 5 . . . 5 . 2 1 12 3 10 . 11 18 13 5 . . . 1 . 2 12 7 5 2 31 20 . Classes Destroyed 32 | 1 2 2 . 1 10 1 . . . 1 1 . . . 5 1 . . . . . . . . 2 1 . 2 2 . Worker 22 | . . . . . . . . . . . 6 2 . . 4 . 2 . . . . . 2 . 3 . . 1 2 . Builder 21 | . . . . . 3 . . . . . 1 . . . 3 . . . . . . . . . 2 2 3 5 2 . Tunneler 6 | 1 . . . . 2 . . . . . . . . . . . . . . 2 . . . . . . . . 1 . Hauler 12 | . 2 . . . 6 . . . . . 1 . . . . . . . . . . . 1 . . 1 1 . . . Recycler 12 | . . . . . 4 . . . 1 . 1 . . . . . . . . . . . . . 2 . 3 . 1 . Mechanic 5 | . . . . . . . . . . . . . . . 3 . . . . . . . . . 1 . . . 1 . Operator 13 | . . . . . 2 . . . 1 . . . . . . . . . . . . 9 . . . . . . 1 . Drone 16 | . . . . . . . . . . . . . . . . . . . . . . . . . 2 . . 14 . . Watcher 7 | . . . . . 1 . . . 1 . . . . 1 . . . . . . 1 . . . . . . . 3 . Swarmer 69 | . 6 . . . 2 . . . 1 12 3 4 . 8 10 5 . . 2 . . . 3 4 . 2 4 3 . . Cutter 6 | . . . . . . . . . . 2 . . . . . . . . . . . . . . . . . . 4 . Saboteur 5 | . . . . . . . . . . . . . . . 1 . . . . . . . . . . . . 1 3 . Grunt 141 | . . 1 . . 3 . . 4 1 1 3 7 1 11 8 8 5 . . . . . 2 11 9 3 3 13 47 . Brawler 19 | . . . . . 2 . . 1 . 1 . 1 . 3 3 2 . . . . . . . . . . . 5 1 . Duelist 9 | . . . . . 1 . . . . . 1 . . . . . . . . . . . 1 . . . . 4 2 . Protector 6 | . . . . . . . . . . . . . . . 1 . . . . . . . . . . . . 3 2 . Researcher 14 | . . . . . . . . . . . . . . . . . . . . . . . . . 3 . 4 7 . . Sentry 25 | . . . . . 2 . . . . . 2 1 . 1 1 . . . . 4 . 1 1 1 . . . 9 1 1 Demolisher 1 | . . . . . . . . . . . . . . . 1 . . . . . . . . . . . . . . . Specialist 7 | . . . . . . . . . . . . . . . 1 1 . . . . . . . . . . 3 . 2 . Hunter 44 | . . . . . 5 . . . 1 . 2 1 . 2 . . 2 . . . . . . 2 3 5 2 8 11 . Programmer 70 | . . . . . 1 . . . . 2 . 3 . 5 . 11 . . 2 . . . . . 5 3 6 30 2 . Heavy 5 | . . . . . 1 . . 1 . . . . . . . . . . . . . . . . . . . . 2 1 Q-Series 5 | . . . . . . . . . . . . . . . . . . . . . . . . . . 1 . . 4 . Behemoth 4 | . . . . . . . . . . . . . . . . 1 . . . . . . . 3 . . . . . . Compactor 5 | . . . . . . 5 . . . . . . . . . . . . . . . . . . . . . . . . Cetus Guard 3 | . . . . . . . . . . . . . . . . . . . . . 3 . . . . . . . . . M Guard 2 | . . . . . . . . . . . . . . . . . . . . . . . . . . . . . . 2 Lightning 1 | . . . . . . . . . . . . . . . . . . . . . . . 1 . . . . . . . Hotshot 2 | . . . . . . . . . . . . . . . . . . . . . . . . . . . . 2 . . Decapitator 11 | . . . . . . . . . . . . . . . . . . . . . . . . . . . . 11 . . Immortal 3 | . . . . . . . . . . . . . . . . . . . . . . . . . . . . 3 . . Combat Programmer 2 | . . . . . . . . . . . . . . . . . . . . . . . . . . . . . . 2 Striker 2 | . . . . . . . . . . . . . . . . . . . . . . . . . . . . . 2 . Executioner 4 | . . . . . . . . . . . . . . . . . . . . . . . . . . . . . 4 . Alpha 7 2 | . . . . . . . . . . . . . . . . . . . . . . . . . . . . 2 . . V-Series 10 | . . . . . . . . . . . . . . . . . . . . . . . . . . . . 10 . . Subdweller 10 | . . 10 . . . . . . . . . . . . . . . . . . . . . . . . . . . . Tinkerer 2 | . . . . 1 . . . . . . . . . . . . . . . . . . . . . . . 1 . . Thug 1 | . . . . . . . . . . . . . . . . . . . . . . 1 . . . . . . . . Butcher 1 | . . . . . . . . . . . . . . . . . . . . . . . 1 . . . . . . . Martyr 2 | . . . . . . . . . . . . . . . . . . 2 . . . . . . . . . . . . Best Kill Streak 18 | 1 3 3 . . 6 3 . 3 2 12 11 8 1 6 9 5 6 . 2 2 3 3 4 9 6 3 7 12 18 3 Combat Bots Only 17 | . 3 3 . . 3 3 . 3 1 12 3 8 1 6 6 5 5 . 2 1 2 1 3 9 5 3 4 12 17 3 Max Kills in Single Turn 8 | 1 1 1 . 1 1 2 . 2 2 5 3 8 1 3 5 5 2 1 1 2 1 1 2 4 4 2 2 8 5 1 Gunslinging . | . . . . . . . . . . . . . . . . . . . . . . . . . . . . . . . Exploded 8 | . . 1 . . . 2 . 2 1 5 3 6 . 3 4 5 2 . . . 1 . 1 4 3 2 2 8 5 . Melee 1 | . . . . . 1 . . . . . . . . . . . . . . . . . . . . . 1 1 1 . Uniques/NPCs Destroyed 1 | . . . . . . . . . . . . . . . . . . . . . . . . . . . 1 . . . 6S-H0T (-2/Quarantine) Combat | -11 -10 -10 -9 -9 -6 -6 -6 -6 -5 -5 -5 -5 -5 -5 -5 -5 -4 -4 -4 -4 -4 -4 -4 -3 -3 -2 -2 -2 -1 -1 -------- Run | Yrd Mat Sub Rec Scr Fac Was Fac DSF Fac Gar Fac Gar Fac Gar Fac Gar Fac Was Fac Ext Cet Arc Hub Res Tes Res Qua Frg Acc Com Hostile Shots Fired 2561 | . 20 47 . 6 188 . . 10 15 29 13 47 5 81 46 134 48 . 38 12 18 5 57 89 121 128 207 716 274 207 Missed 849 | . 4 14 . 4 55 . . 3 3 9 10 16 1 16 15 43 20 . 17 3 7 3 14 41 30 44 94 260 77 46 Intercepted 25 | . . . . . . . . . . . . . . . . . . . . . . . . . . . . 1 23 1 Deflected 39 | . . . . . . . . . . . . . . . . . . . . . . . . . . 5 . 14 19 1 Hits 1712 | . 16 33 . 2 133 . . 7 12 20 3 31 4 65 31 91 28 . 21 9 11 2 43 48 91 84 113 456 197 161 Melee 46 | . . . . . 1 . . 1 . . . . . 1 . . . . . . . . . . . . . 33 8 2 Projectile 1666 | . 16 33 . 2 132 . . 6 12 20 3 31 4 64 31 91 28 . 21 9 11 2 43 48 91 84 113 423 189 159 AOE 57 | . . . . . . . . . . 1 . . . . 2 . 1 . 2 . . . . . . 24 . 3 3 21 Critical Strikes 118 | . . . . . 7 . . . . 2 1 2 1 3 1 3 . . 1 . 3 . 6 4 8 3 17 41 8 7 Actively Blocked 103 | . . . . . . . . . . . . . . 3 . 3 . . 1 . 3 . 5 4 8 3 17 41 8 7 Part Disruptions 16 | . . . . . . . . . . . . . . . 1 . . . . . . . . . . . 3 11 . 1 Damage Taken 41407 | . 94 484 . 38 1692 . . 196 187 275 174 662 175 969 1205 2121 562 . 619 166 216 54 1555 1117 2147 1556 2364 12120 4680 5979 Core 4438 | . 11 81 . 20 173 . . 27 . . 31 45 21 45 79 305 133 . 99 25 . 26 262 70 264 158 70 858 437 1198 Absorbed by Shields 5932 | . 39 173 . . . . . . 55 150 47 256 83 354 . . . . . 72 95 . 160 . 84 476 387 3501 . . Redirected to Shielding 316 | . . . . . . . . . . . . . . . 25 77 . . . . . . . . . 31 69 114 . . Regen/Repaired (Parts) 5047 | . 36 . . . . . . . . . 21 216 . . 217 . 382 228 274 742 . . . . 225 . 579 788 777 562 Core Remaining (%) 60 | 100 . . . 55 . . . 76 . . . . . . . 47 . . . . . . 52 . 74 . . 22 . . Volleys Fired 1778 | 1 34 54 3 . 60 7 . 8 18 78 33 90 9 174 44 86 24 46 29 78 26 44 49 40 118 128 64 245 166 22 Largest 2 | 2 2 2 1 . 2 1 . 2 2 2 2 2 2 2 2 2 1 1 1 2 1 2 2 2 2 2 2 2 2 1 Hottest 360 | 40 40 110 80 . 75 50 . 75 75 75 135 205 205 205 205 205 88 120 120 176 120 176 176 180 180 151 168 190 190 360 Shots Fired 2205 | 2 68 72 3 . 100 7 . 15 32 86 42 104 12 204 57 105 24 46 29 81 26 46 63 49 152 144 78 336 200 22 Gun 500 | 2 68 46 . . . . . . . . 12 14 7 31 12 18 . . . . . . . . 23 84 46 127 10 . Cannon 1403 | . . 15 3 . 99 . . 13 30 63 15 82 5 111 24 69 15 41 28 47 16 46 60 36 116 48 29 192 178 22 Launcher 117 | . . 11 . . . 7 . 2 2 4 2 3 . 9 14 3 4 . . 2 10 . 3 10 2 . 2 17 10 . Special 185 | . . . . . 1 . . . . 19 13 5 . 53 7 15 5 5 1 32 . . . 3 11 12 1 . 2 . Kinetic 595 | 2 68 28 . . 41 . . 6 14 22 6 . . 24 . 32 3 . . 3 . 8 30 . . 16 46 199 41 6 Thermal 1133 | . . 33 3 . 58 . . 7 16 55 21 96 12 118 36 63 1 41 28 44 16 38 28 21 98 23 5 109 147 16 Explosive 105 | . . 11 . . . 7 . 2 2 4 2 3 . 9 14 3 4 . . . . . 3 10 2 . 2 17 10 . Electromagnetic 209 | . . . . . . . . . . . . . . . . . 11 . . 2 10 . 2 15 41 93 24 11 . . Piercing 10 | . . . . . . . . . . 5 . . . . . . . . . . . . . 3 . . . . 2 . Robot Hit Streak 47 | 1 7 16 . . 21 3 . 6 5 15 7 10 12 23 8 8 7 9 5 12 12 14 4 8 14 12 13 47 25 21 Robot Miss Streak 8 | 1 2 4 . . 2 7 . 1 4 2 3 5 2 4 8 8 3 3 2 2 . 2 6 3 6 8 4 8 5 2 Penetration Max 2 | . . . . . . . . . . 1 . . . . . . . . . . . 1 1 1 1 2 1 1 2 . Secondary Targets 3 | . 1 . . . . . . . . . . . . . . . . . . . . . . . . . 1 1 . . Max Gunslinging Chain 1 | . 1 . . . . . . . . . . . . . . . . . . . . . . . . . 1 1 . . Capacitor 149 | . . . . . . . . . . . . . . . . . . . . . . . . . . . . 67 79 3 Shots Hit Robots 1587 | 1 42 43 . 1 102 5 . 10 19 49 33 38 10 130 35 58 15 31 19 49 4 34 22 28 84 83 78 411 130 23 Core Hits 1272 | 1 14 20 . . 37 16 . 17 15 40 33 70 6 47 124 74 15 10 8 10 16 20 24 80 51 51 38 284 139 12 Critical Kills 69 | . . . . . 1 . . 1 . 1 . . . 2 . 2 . . . 2 . 1 4 . . . 6 24 21 4 Critical Parts Destroyed 91 | . . . . . . . . . . . . . . . . . . . . 2 . 2 7 2 . . 6 36 29 7 Critical Strikes 265 | . . . . . 5 . . 1 . 5 2 . . 3 . 6 . . . 4 . 4 12 8 . 2 13 133 53 14 Meltdown 24 | . . . . . 1 . . 1 . 1 . . . 2 . 2 . . . 1 . . . . . . . 6 7 3 Destroy 153 | . . . . . . . . . . . . . . . . . . . . 3 . 4 11 . . . 12 70 44 9 Blast 12 | . . . . . 2 . . . . . 2 . . 1 . 4 . . . . . . . . . . . 3 . . Corrupt 7 | . . . . . . . . . . . . . . . . . . . . . . . 1 3 . 2 . 1 . . Smash 4 | . . . . . . . . . . . . . . . . . . . . . . . . 2 . . . . . 2 Sever 6 | . . . . . 2 . . . . . . . . . . . . . . . . . . . . . 1 3 . . Impale 59 | . . . . . . . . . . 4 . . . . . . . . . . . . . 3 . . . 50 2 . Melee Attacks 362 | . . 6 . 4 61 . . . . . . . . . . . . . . . . . . 6 . . 50 220 5 10 Kinetic 7 | . . . . . . . . . . . . . . . . . . . . . . . . . . . 7 . . . Impact 28 | . . 6 . 4 1 . . . . . . . . . . . . . . . . . . 6 . . . 2 . 9 Slashing 157 | . . . . . 60 . . . . . . . . . . . . . . . . . . . . . 43 48 5 1 Piercing 170 | . . . . . . . . . . . . . . . . . . . . . . . . . . . . 170 . . Sneak Attacks 51 | . . . . 1 13 . . . . . . . . . . . . . . . . . . . . . 16 21 . . Combat Hostiles 5 | . . . . . . . . . . . . . . . . . . . . . . . . . . . 5 . . . Follow-up Attacks 3 | . . . . . . . . . . . . . . . . . . . . . . . . . . . . 3 . . Martial Strikes 5 | . . . . . . . . . . . . . . . . . . . . . . . . . . . . 5 . . Damage Inflicted 108553 | 10 460 1495 . 122 4526 2962 . 906 782 2566 1647 3004 361 5112 4273 4098 976 1614 934 954 1165 1497 1339 3856 5683 2854 5368 30154 16700 3135 Guns 7635 | 10 460 395 . . . . . . . . 409 442 221 958 372 425 . . . . . . . . 32 406 855 2547 103 . Cannons 43631 | . . 157 . . 1892 . . 313 554 1355 459 784 140 2672 457 2363 266 1614 930 814 . 1497 973 1057 3398 850 647 9158 9794 1487 Explosions 39929 | . . 696 . . . 2962 . 593 221 1051 752 1778 . 1482 3444 1265 655 . . 140 1165 . 338 2638 2253 1598 411 8707 6539 1241 Melee 16886 | . . 247 . 122 2634 . . . . . . . . . . . . . . . . . . 99 . . 3443 9729 240 372 Ramming 197 | . . . . . . . . . 7 . 27 . . . . . 55 . 4 . . . 28 16 . . 12 13 . 35 Kinetic 13223 | 10 460 244 . . 709 . . 116 234 551 228 . . 1385 . 1786 . . . 52 . 154 318 . . 260 1222 4940 468 86 Thermal 38800 | . . 308 . . 1183 . . 197 320 903 640 1226 361 2245 829 1047 34 1614 930 762 408 1343 465 684 3260 1730 121 6414 9429 2347 Explosive 34864 | . . 696 . . . 2962 . 593 221 1051 752 1778 . 1482 3118 1265 655 . . . . . 338 2372 1924 . 411 8707 6539 . Electromagnetic 4524 | . . . . . . . . . . . . . . . 326 . 232 . . 140 757 . 190 639 499 864 526 351 . . Impact 1219 | . . 247 . 122 84 . . . . . . . . . . . . . . . . . . 99 . . . . . 667 Slashing 8878 | . . . . . 2550 . . . . . . . . . . . . . . . . . . . . . 3076 3012 240 . Piercing 6848 | . . . . . . . . . . 61 . . . . . . . . . . . . . 46 . . . 6717 24 . Highest Corruption 41 | . . . . 6 5 17 17 24 . 1 1 1 2 9 11 14 . . . . . . 10 . . . . 41 1 10 Average Corruption 11 | . . . . 4 4 11 17 18 . 1 1 1 1 6 9 13 . . . . . . 6 . . . . 31 1 5 Corruption Purged 3 | . . . . . 3 . . . . . . . . . . . . . . . . . . . . . . . . . Corruption Blocked 65 | . . . . . . . . . . . . . . . . . . . . . . . . . 14 6 14 31 . . Effects 368 | . . . . . 24 7 1 8 . 2 4 9 3 60 40 44 . . . . . . 9 . . . . 146 2 9 Message Errors 92 | . . . . . 6 2 . 2 . 1 1 . . 15 12 9 . . . . . . 3 . . . . 37 1 3 Matter Fused 89 | . . . . . 5 2 . 2 . . 2 2 . 18 12 8 . . . . . . 1 . . . . 33 1 3 Heat Flow Errors 49 | . . . . . 5 1 . 1 . . . 1 . 6 3 11 . . . . . . 1 . . . . 19 . 1 Energy Discharges 29 | . . . . . 1 . . 1 . . . 2 2 5 1 4 . . . . . . 1 . . . . 12 . . Parts Rejected 5 | . . . . . . . . . . . . . . . . 1 . . . . . . . . . . . 4 . . Parts Fused 4 | . . . . . . . . . . . 1 . . 1 . . . . . . . . . . . . . 2 . . Data Loss (minor) 32 | . . . . . 1 1 1 . . . . 2 1 5 4 3 . . . . . . 1 . . . . 11 . 2 Data Loss (major) 16 | . . . . . 1 . . 1 . 1 . . . 3 2 1 . . . . . . 2 . . . . 5 . . Misfires 17 | . . . . . 2 . . 1 . . . . . 2 3 1 . . . . . . . . . . . 8 . . Alerts 11 | . . . . . 3 1 . . . . . 1 . 2 . 2 . . . . . . . . . . . 2 . . Misdirections 6 | . . . . . . . . . . . . . . . 1 . . . . . . . . . . . . 5 . . Weapon Failures 18 | . . . . . . . . . . . . 1 . 3 2 4 . . . . . . . . . . . 8 . . Overload Shots 1 | . . . . . . . . . . . . . . . . . . . . . . . . . . . . . . 1 Overflow Damage 8633 | . . 91 . 112 750 . . . 20 63 15 7 2 438 104 398 32 83 . . . 145 . 112 563 89 904 3316 1325 64 Projectiles 2802 | . . . . . 4 . . . 10 63 1 1 2 403 11 373 . 83 . . . 145 . 10 469 28 . 743 456 . Explosions 1629 | . . . . . . . . . 10 . 14 6 . 35 93 25 24 . . . . . . 39 94 61 5 354 869 . Melee 4202 | . . 91 . 112 746 . . . . . . . . . . . 8 . . . . . . 63 . . 899 2219 . 64 Knockbacks 45 | . . 2 . 1 2 . . . 3 3 2 . . 6 . 8 . . . . . 1 . . . . . 3 13 1 Impact 5 | . . 2 . 1 1 . . . . . 1 . . . . . . . . . . . . . . . . . . . Kinetic 39 | . . . . . 1 . . . 3 3 1 . . 6 . 7 . . . . . 1 . . . . . 3 13 1 Secondary 1 | . . . . . . . . . . . . . . . . 1 . . . . . . . . . . . . . . Self-Inflicted Damage 3544 | . . 31 . . . . . 56 . . 99 213 . . 482 210 . . . . . . 11 17 262 45 49 1732 323 14 Shots 75 | . . 1 . . . . . 1 . . 2 8 . . 13 10 . . . . . . 1 1 3 1 1 31 2 . Rammed 8 | . . . . . . . . . . . . . . . . . . . . . . . . . . . . . . 8 Targets Rammed 24 | . . . . . . . . . 2 . 2 . . . . . 5 . 1 . . . 2 1 . . 1 1 . 9 Kicked 16 | . . . . . . . . . 2 . 2 . . . . . 5 . 1 . . . 2 1 . . 1 1 . 1 Crushed . | . . . . . . . . . . . . . . . . . . . . . . . . . . . . . . . Highest Temperature 433 | . . 8 90 . 303 287 . 225 36 118 118 322 315 433 210 300 . 56 75 . . . . . 253 227 22 410 409 187 Average Temperature 87 | . . 5 49 . 101 154 . 209 14 31 51 88 121 118 48 87 . 41 49 . . . . . 71 58 13 70 103 96 Received Heat Transfer 3290 | . 4 97 . . 309 . . 54 19 41 8 45 45 170 153 339 . . 96 26 . . 30 78 115 84 21 665 387 504 Thermoelectric Energy+ 363 | . . . . . . . . . . . . . . . . . . . . . . . . . . . . . 253 110 Effects 9 | . . . . . 2 . . . . . . . 1 2 . . . . . . . . . . 2 . . . 2 . Shutdowns 2 | . . . . . . . . . . . . . . 1 . . . . . . . . . . . . . . 1 . Energy Bleed 2 | . . . . . 1 . . . . . . . . . . . . . . . . . . . . . . . 1 . Interference 2 | . . . . . . . . . . . . . . . . . . . . . . . . . 2 . . . . . Short Circuit 1 | . . . . . . . . . . . . . 1 . . . . . . . . . . . . . . . . . Damage (minor) 2 | . . . . . 1 . . . . . . . . 1 . . . . . . . . . . . . . . . . Siege Activations . | . . . . . . . . . . . . . . . . . . . . . . . . . . . . . . . Martial Activations . | . . . . . . . . . . . . . . . . . . . . . . . . . . . . . . . Shielding Activations 3 | . . . . . . . . . . . . . . . . . . . . . . . . . . 2 . 1 . . Total Turns 87 | . . . . . . . . . . . . . . . . . . . . . . . . . . 75 . 12 . . Longest Duration 44 | . . . . . . . . . . . . . . . . . . . . . . . . . . 44 . 12 . . Robots Disrupted 13 | . . . . . . . . . . . . . . . 2 . . . . . . . . 1 3 7 . . . . Combat Hostiles 11 | . . . . . . . . . . . . . . . 1 . . . . . . . . 1 3 6 . . . . Robots Corrupted 26 | . . 1 . 1 1 . . . . . . . . . . . 2 . . . 2 . 1 5 3 2 4 3 . 1 Combat Hostiles 23 | . . 1 . . . . . . . . . . . . . . 1 . . . 2 . 1 5 3 2 4 3 . 1 Parts Fried 32 | . . . . . 1 . . . . . . . . . . . 3 . . . 2 . 2 5 4 5 3 7 . . Impact Corruptions 13 | . . 2 . 3 1 . . . . . . . . . . 1 1 . . . . . . 2 . . . . . 3 Robots Melted 27 | . . . . . 2 . . 1 . 1 . . . 2 1 2 . . . 1 . . . . . . . 6 8 3 Combat Hostiles 25 | . . . . . 1 . . 1 . 1 . . . 2 1 2 . . . 1 . . . . . . . 6 7 3 Parts Melted 72 | . . . . . 1 . . 4 1 7 . 3 . 9 4 2 . 2 1 2 . 2 . . . 1 1 15 17 . Heat Transferred 29727 | . . 447 . . 1850 . . 300 500 1575 863 1515 523 2903 1047 1533 50 1406 777 666 300 1127 388 200 550 1159 100 3574 5625 749 Parts Sabotaged 3 | . . . . . . . . . . . . . . . . . . . . . . . . . . . . . 2 1 Parts Stolen . | . . . . . . . . . . . . . . . . . . . . . . . . . . . . . . . Parts Stripped 15 | . . . . . . . . . . . . . . . . . . . . . . . . . . . 15 . . . Power Chain Reactions 11 | . . . . . . . . . . . . . . . 1 . . . . . 2 . . 1 1 6 . . . . Alert | -11 -10 -10 -9 -9 -6 -6 -6 -6 -5 -5 -5 -5 -5 -5 -5 -5 -4 -4 -4 -4 -4 -4 -4 -3 -3 -2 -2 -2 -1 -1 ------- Run | Yrd Mat Sub Rec Scr Fac Was Fac DSF Fac Gar Fac Gar Fac Gar Fac Gar Fac Was Fac Ext Cet Arc Hub Res Tes Res Qua Frg Acc Com Maximum Alert Level 5 | . . . . . 2 1 . 1 2 4 5 5 5 5 5 5 4 2 . 2 2 . 3 2 1 1 1 5 5 5 Low Security (%) 35 | 100 100 . 100 . 56 8 100 45 15 . . . . . . . . 53 100 55 . 100 28 3 84 23 75 4 . . Level 1 15 | . . . . . 16 91 . 54 83 16 . . . . . . . 37 . 16 50 . 8 55 15 76 24 13 . . Level 2 10 | . . . . . 27 . . . 1 7 . . . . . . . 8 . 28 49 . 48 40 . . . 18 . . Level 3 7 | . . . . . . . . . . 1 68 . . . . . 18 . . . . . 14 . . . . 28 29 . Level 4 14 | . . . . . . . . . . 74 21 5 47 20 78 21 81 . . . . . . . . . . 28 37 13 Level 5 14 | . . . . . . . . . . . 2 94 52 79 21 78 . . . . . . . . . . . 3 8 14 High Security 2 | . . . . . . . . . . . 7 . . . . . . . . . . . . . . . . 2 25 71 Max Security . | . . . . . . . . . . . . . . . . . . . . . . . . . . . . . . . Peak Influence 2664 | 5 60 . 1 . 586 252 155 299 400 1540 1763 2664 2011 2489 2076 2164 1297 430 140 669 468 165 732 591 373 351 332 1796 2515 1762 Initial 1609 | . . . . . . 204 155 98 156 257 808 1234 1398 1311 1306 1445 1136 426 . 15 264 165 . 349 280 209 121 174 1100 1609 Average 732 | 1 7 . . . 243 223 148 179 277 1081 1093 2171 1692 1944 1542 1908 1188 199 72 232 393 28 444 396 98 247 172 887 1474 1692 Influence Increases 25833 | 5 168 30 2 . 1428 78 5 231 590 1413 1661 1500 1010 1958 1649 849 353 146 396 1131 340 224 1250 664 1179 648 937 2854 2801 333 Destroy 0b10 Robot/C 12220 | . 120 20 . . 720 . . 140 260 740 900 660 420 905 555 450 105 . 165 450 120 60 450 315 600 300 540 1800 1335 90 Destroy 0b10 Robot/NC 661 | 5 10 . . . 105 . . . 20 15 75 5 40 10 40 4 8 . . 32 4 36 12 . 36 16 28 108 52 . Destroy Leader 1722 | . 24 10 . . 176 . . 20 64 60 122 40 84 60 82 64 16 . 32 40 . . 82 80 96 58 66 192 238 16 Allied During Kill 3486 | . . . . . 158 . . 32 67 214 330 162 389 123 252 48 . . 137 484 124 96 466 . 156 67 72 59 50 . Successful Hack 337 | . 14 . . . 63 . 5 . 16 . 18 35 . . . 11 . . 32 5 . . 4 67 37 6 15 9 . . Disable Machine 1515 | . . . . . 105 . . 15 15 . 45 . 15 120 252 . 72 . 12 36 12 24 60 12 120 36 108 264 168 24 Anti-Garrison Action 1240 | . . . . . . . . . . 250 . 350 . 413 . 114 . . . . . . . . . . . . 113 . Destroy Structure 3587 | . . . 2 . 26 78 . 24 88 134 126 218 2 222 468 122 152 146 18 72 80 8 164 190 134 165 96 338 446 68 Partial Spotted 27 | . . . . . . . . . . . . . . 15 . . . . . . . . . . . . . 12 . . Lose Combat Pursuer 588 | . . . . . 75 . . . 60 . 45 30 60 90 . 36 . . . 12 . . 12 . . . 12 72 24 60 Active Sensor Use 450 | . . . . . . . . . . . . . . . . . . . . . . . . . . . . . 375 75 Influence Decreases 24124 | 5 168 30 2 . 845 439 87 72 521 241 1438 599 1800 1343 2073 750 1298 1365 364 690 399 638 584 831 1305 804 843 1369 2105 1116 Entered New Map 10489 | . . . . . . 379 67 42 143 111 732 529 1266 563 1183 620 1028 793 . 17 209 249 . 317 219 164 96 137 719 906 Time Decay 7578 | 5 168 30 2 . 665 60 20 . 318 . 356 . 254 . 410 . 170 572 234 463 170 259 364 434 479 350 577 752 416 50 Lost Part 910 | . . . . . 20 . . . . . . . . 30 20 70 20 . 10 . . 10 40 . 70 30 30 340 60 160 Lost Ally 3267 | . . . . . 160 . . 30 60 130 350 70 280 200 310 60 80 . 120 60 20 120 180 80 257 260 140 140 160 . Purge Threat 1880 | . . . . . . . . . . . . . . 550 150 . . . . 150 . . . . 280 . . . 750 . Squads Dispatched 162 | . . . . . 13 . . 1 5 . 11 . 11 . 9 . 4 . 2 2 . . 5 9 13 4 7 22 32 12 Investigation 29 | . . . . . 4 . . . 1 . 2 . 2 . . . 3 . . . . . . 5 3 1 . . 7 1 Extermination 34 | . . . . . 4 . . . 2 . . . 1 . 1 . 1 . 2 . . . 2 . 3 1 4 9 4 . Reinforcement 43 | . . . . . 5 . . 1 1 . 3 . 3 . . . . . . 2 . . 2 4 7 2 3 4 3 3 Assault 46 | . . . . . . . . . . . 2 . 2 . 6 . . . . . . . 1 . . . . 9 18 8 Garrison 10 | . . . . . . . . . 1 . 4 . 3 . 2 . . . . . . . . . . . . . . . Intercept . | . . . . . . . . . . . . . . . . . . . . . . . . . . . . . . . Searches Triggered . | . . . . . . . . . . . . . . . . . . . . . . . . . . . . . . . Unchained Authorized 1 | . . . . . . . . . . . . . . . . . . . . . . . . . . . 1 . . . Construction Impeded 6 | . . . . . . . . . . . 1 . 1 . . . . . . 2 . . . . . 1 . 1 . . Haulers Reinforced 5 | . . . . . 1 . . . . . 1 . 1 . . . . . . . . . . 2 . . . . . . Active Scanning Responses 6 | . . . . . . . . . . . . . . . . . . . . . . . . . . . . . 5 1 Cargo Convoy Interrupts 1 | . . . . . . . . . . . 1 . . . . . . . . . . . . . . . . . . . Stealth | -11 -10 -10 -9 -9 -6 -6 -6 -6 -5 -5 -5 -5 -5 -5 -5 -5 -4 -4 -4 -4 -4 -4 -4 -3 -3 -2 -2 -2 -1 -1 --------- Run | Yrd Mat Sub Rec Scr Fac Was Fac DSF Fac Gar Fac Gar Fac Gar Fac Gar Fac Was Fac Ext Cet Arc Hub Res Tes Res Qua Frg Acc Com Distress Signals 30 | . 1 . . . 2 . . . . . 1 1 . . 3 . . . . 1 . . 1 9 4 1 1 . 4 1 Communications Jammed 182 | . . . . . 35 . . . . . . . . 1 21 . . . . . . . 125 . . . . . . . Distress Signals 160 | . . . . . 29 . . . . . . . . 1 21 . . . . . . . 109 . . . . . . . Times Spotted 908 | . 8 15 . 1 51 5 . 7 16 32 48 36 28 42 31 33 15 5 12 32 11 23 37 36 54 26 37 131 102 34 Peak Tracking Total 19 | . 3 3 . 1 4 3 . 3 3 8 6 12 6 7 6 7 7 2 4 5 5 2 6 9 10 5 4 11 11 19 Tactical Retreats 33 | . . . . . 4 . . . 2 . 3 2 2 4 . 3 . . . 1 . . 1 . . . 1 6 1 3 Traps | -11 -10 -10 -9 -9 -6 -6 -6 -6 -5 -5 -5 -5 -5 -5 -5 -5 -4 -4 -4 -4 -4 -4 -4 -3 -3 -2 -2 -2 -1 -1 ------- Run | Yrd Mat Sub Rec Scr Fac Was Fac DSF Fac Gar Fac Gar Fac Gar Fac Gar Fac Was Fac Ext Cet Arc Hub Res Tes Res Qua Frg Acc Com Traps Triggered 30 | . 1 . . . 2 . . . . . 1 5 2 3 3 . 2 . . 1 . . 1 . . 1 1 7 . . Indirectly 3 | . . . . . . . . . . . . . . . 3 . . . . . . . . . . . . . . . Trap Hack Attempts 47 | . . . . . 47 . . . . . . . . . . . . . . . . . . . . . . . . . Triggered . | . . . . . . . . . . . . . . . . . . . . . . . . . . . . . . . Disarmed 7 | . . . . . . . . . . . . . . . 3 . . . . . . . 4 . . . . . . . Reprogrammed 4 | . . . . . 4 . . . . . . . . . . . . . . . . . . . . . . . . . Reused 1 | . . . . 1 . . . . . . . . . . . . . . . . . . . . . . . . . . Traps Extracted . | . . . . . . . . . . . . . . . . . . . . . . . . . . . . . . . Installed 1 | . . . . 1 . . . . . . . . . . . . . . . . . . . . . . . . . . Triggered . | . . . . . . . . . . . . . . . . . . . . . . . . . . . . . . . Most Traps Carried 1 | . . . . 1 . . . . . . . . . . . . . . . . . . . . . . . . . . Machines | -11 -10 -10 -9 -9 -6 -6 -6 -6 -5 -5 -5 -5 -5 -5 -5 -5 -4 -4 -4 -4 -4 -4 -4 -3 -3 -2 -2 -2 -1 -1 ---------- Run | Yrd Mat Sub Rec Scr Fac Was Fac DSF Fac Gar Fac Gar Fac Gar Fac Gar Fac Was Fac Ext Cet Arc Hub Res Tes Res Qua Frg Acc Com Machines Disabled 153 | . . . . 2 7 . . 1 1 4 3 3 1 14 21 3 6 . 1 6 1 2 5 1 12 3 9 30 15 2 Max in Single Turn 6 | . . . . 1 1 . . 1 1 1 2 1 . 1 6 1 6 . . 1 1 1 1 1 1 1 1 2 1 1 Garrison Access 12 | . . . . . 1 . . . 1 . 1 . . . 1 . . . . . . . 1 2 1 1 1 1 1 . Garrison Relay 13 | . . . . . . . . . . 3 . 3 . 5 . 2 . . . . . . . . . . . . . . Network Hub 1 | . . . . . . . . . . . . . . . . . . . . . . . 1 . . . . . . . Machines Repaired . | . . . . . . . . . . . . . . . . . . . . . . . . . . . . . . . Machines Dismantled . | . . . . . . . . . . . . . . . . . . . . . . . . . . . . . . . Machines Sabotaged . | . . . . . . . . . . . . . . . . . . . . . . . . . . . . . . . Overloaded Fab Kills . | . . . . . . . . . . . . . . . . . . . . . . . . . . . . . . . Hacking | -11 -10 -10 -9 -9 -6 -6 -6 -6 -5 -5 -5 -5 -5 -5 -5 -5 -4 -4 -4 -4 -4 -4 -4 -3 -3 -2 -2 -2 -1 -1 --------- Run | Yrd Mat Sub Rec Scr Fac Was Fac DSF Fac Gar Fac Gar Fac Gar Fac Gar Fac Was Fac Ext Cet Arc Hub Res Tes Res Qua Frg Acc Com Machines Accessed 128 | . 10 . . 3 23 . 1 . 7 3 4 3 3 1 4 3 3 . 7 6 1 . 4 11 10 5 8 3 5 . Terminals 69 | . 8 . . . 12 . 1 . 2 3 1 3 . 1 2 3 . . 4 5 1 . 2 4 4 2 5 2 4 . Fabricators 14 | . . . . . 3 . . . 2 . 1 . 1 . . . 1 . 1 . . . . 3 1 . . . 1 . Repair Stations 11 | . 1 . . . 2 . . . . . . . . . . . 1 . 1 1 . . . 1 2 1 1 . . . Recycling Units 7 | . 1 . . . 2 . . . 1 . . . . . 1 . . . 1 . . . . . . 1 . . . . Scanalyzers 9 | . . . . . 3 . . . . . . . 1 . . . 1 . . . . . . 1 2 . 1 . . . Garrison Access 15 | . . . . . 1 . . . 2 . 2 . 1 . 1 . . . . . . . 2 2 1 1 1 1 . . Total Hacks 379 | . 25 . . 24 67 . 1 . 16 6 6 6 11 1 9 5 7 . 15 11 2 . 12 36 49 20 23 9 18 . Successful 216 | . 9 . . 24 43 . 1 . 14 1 3 3 3 . 6 2 3 . 7 8 . . 6 16 30 6 9 4 18 . Failed 160 | . 15 . . . 23 . . . 2 5 3 3 8 1 3 3 4 . 8 3 2 . 6 20 18 14 14 5 . . Catastrophic 34 | . 3 . . . 4 . . . 1 . . 2 2 . . 1 1 . 4 1 1 . . 3 1 2 6 2 . . Database Lockouts 3 | . 1 . . . 1 . . . . . . . . . . . . . . . . . . . 1 . . . . . Manual 113 | . 7 . . . 23 . . . 4 5 2 4 4 1 3 2 3 . 4 4 1 . 6 5 14 3 13 1 4 . Terminals 182 | . 18 . . . 34 . 1 . 2 6 1 6 . 1 4 5 . . 6 7 2 . 7 12 25 7 18 7 13 . Fabricators 52 | . . . . . 11 . . . 10 . 2 . 4 . . . 2 . 3 . . . . 11 4 . . . 5 . Repair Stations 34 | . 4 . . . 4 . . . . . . . . . . . 3 . 3 4 . . . 2 6 6 2 . . . Recycling Units 20 | . 3 . . . 4 . . . 2 . . . . . 3 . . . 3 . . . . . . 5 . . . . Scanalyzers 39 | . . . . . 13 . . . . . . . 2 . . . 2 . . . . . . 8 12 . 2 . . . Garrison Access 28 | . . . . . 1 . . . 2 . 3 . 5 . 2 . . . . . . . 5 3 2 2 1 2 . . Terminal Hacks 93 | . 5 . . 24 12 . 1 . . 1 . 3 . . 2 2 . . 3 4 . . 3 2 14 2 1 1 13 . Record 23 | . . . . 23 . . . . . . . . . . . . . . . . . . . . . . . . . . Part Schematic 5 | . 1 . . . 1 . . . . . . 1 . . . . . . . . . . . . 2 . . . . . Robot Schematic 1 | . . . . . 1 . . . . . . . . . . . . . . . . . . . . . . . . . Prototype ID Bank 5 | . 3 . . . 1 . . . . . . . . . . . . . . . . . . . 1 . . . . . Open Door 5 | . . . . . . . . . . . . 1 . . . . . . . 2 . . . . . 1 . . 1 . Open DSF 1 | . . . . . . . 1 . . . . . . . . . . . . . . . . . . . . . . . Branch Access Points 4 | . . . . . 1 . . . . . . . . . . . . . 1 . . . . 1 . . . . 1 . Emergency Access Points 2 | . . . . . 1 . . . . . . 1 . . . . . . . . . . . . . . . . . . Terminal Index 3 | . . . . . 1 . . . . . . . . . . . . . 1 . . . . . 1 . . . . . Fabricator Index 2 | . . . . . 1 . . . . . . . . . . . . . . . . . . . 1 . . . . . Unreport Threat 9 | . . . . . . . . . . . . . . . 1 . . . . 1 . . . . 2 . . . 5 . Locate Traps 8 | . . . . . 1 . . . . . . . . . . . . . . 1 . . 1 1 2 1 1 . . . Disarm Traps 2 | . . . . . . . . . . . . . . . 1 . . . . . . . 1 . . . . . . . Recall Investigation 3 | . . . . . 1 . . . . . . . . . . . . . . . . . . . 1 . . . 1 . Recall Extermination 2 | . . . . . 1 . . . . . . . . . . . . . . . . . . . . . . . 1 . Recall Assault 3 | . . . . . . . . . . . . . . . . . . . . . . . . . . . . . 3 . Hauler Manifests 1 | . . . . . . . . . . . . . . . . . . . . . . . . . 1 . . . . . Registered Components 4 | . . . . . 1 . . . . . . . . . . . . . 1 . . . . . 1 . . . 1 . Registered Prototypes 1 | . . . . . . . . . . . . . . . . . . . . . . . . . 1 . . . . . Zone Layout 4 | . 1 . . . 1 . . . . . . . . . . . . . . . . . 1 . 1 . . . . . Garrison Registry 2 | . . . . . . . . . . 1 . . . . . 1 . . . . . . . . . . . . . . Patrol Navigation 1 | . . . . . . . . . . . . . . . . 1 . . . . . . . . . . . . . . Proto ID Catalog 2 | . . . . 1 . . . . . . . . . . . . . . . . . . . . . . . 1 . . Fabricator Hacks 26 | . . . . . 4 . . . 8 . . . 2 . . . 1 . 2 . . . . 5 1 . . . 3 . Network Status 2 | . . . . . . . . . 1 . . . . . . . . . . . . . . . . . . . 1 . Load Schematic 15 | . . . . . 3 . . . 4 . . . 1 . . . 1 . 1 . . . . 3 1 . . . 1 . Build 9 | . . . . . 1 . . . 3 . . . 1 . . . . . 1 . . . . 2 . . . . 1 . Repair Station Hacks 14 | . 2 . . . 4 . . . . . . . . . . . . . 1 2 . . . 1 1 1 2 . . . Scan Component 9 | . 1 . . . 2 . . . . . . . . . . . . . 1 1 . . . 1 1 1 1 . . . Repair 5 | . 1 . . . 2 . . . . . . . . . . . . . . 1 . . . . . . 1 . . . Recycling Unit Hacks 5 | . 1 . . . 1 . . . 1 . . . . . 1 . . . . . . . . . . 1 . . . . Report Inventory 2 | . . . . . . . . . . . . . . . 1 . . . . . . . . . . 1 . . . . Retrieve Components 3 | . 1 . . . 1 . . . 1 . . . . . . . . . . . . . . . . . . . . . Scanalyzer 22 | . . . . . 13 . . . . . . . . . . . . . . . . . . 4 5 . . . . . Insert Component 7 | . . . . . 5 . . . . . . . . . . . . . . . . . . 1 1 . . . . . Analyze 8 | . . . . . 7 . . . . . . . . . . . . . . . . . . . 1 . . . . . Retrieve Study 7 | . . . . . 1 . . . . . . . . . . . . . . . . . . 3 3 . . . . . Garrison Access Hacks 21 | . . . . . 1 . . . 2 . 2 . 1 . 2 . . . . . . . 3 3 2 2 1 2 . . Unlock Access 5 | . . . . . . . . . 1 . 1 . 1 . 1 . . . . . . . 1 . . . . . . . Seal Access 10 | . . . . . 1 . . . 1 . 1 . . . . . . . . . . . 1 2 1 1 1 1 . . Coupler Status 6 | . . . . . . . . . . . . . . . 1 . . . . . . . 1 1 1 1 . 1 . . Unauthorized Hacks 35 | . 1 . . . 8 . . . 3 . 1 . . . 1 . 2 . 1 2 . . . 1 7 . 5 1 2 . Terminals 19 | . . . . . 4 . . . 1 . . . . . . . . . 1 2 . . . . 5 . 5 1 . . Track 4 | . . . . . . . . . . . . . . . . . . . . . . . . . 2 . 1 1 . . Botnet 8 | . . . . . 2 . . . 1 . . . . . . . . . 1 1 . . . . 2 . 1 . . . Operators 2 | . . . . . 1 . . . . . . . . . . . . . . . . . . . 1 . . . . . Skim 5 | . . . . . 1 . . . . . . . . . . . . . . 1 . . . . . . 3 . . . Fabricators 9 | . . . . . 3 . . . 1 . . . . . . . 1 . . . . . . 1 1 . . . 2 . Prioritize 2 | . . . . . 1 . . . . . . . . . . . . . . . . . . . . . . . 1 . Haulers 1 | . . . . . . . . . . . . . . . . . . . . . . . . . . . . . 1 . Recompile 6 | . . . . . 2 . . . 1 . . . . . . . 1 . . . . . . 1 1 . . . . . Repair Stations 1 | . . . . . . . . . . . . . . . . . 1 . . . . . . . . . . . . . Patch 1 | . . . . . . . . . . . . . . . . . 1 . . . . . . . . . . . . . Recycling Units 4 | . 1 . . . 1 . . . 1 . . . . . 1 . . . . . . . . . . . . . . . Recyclers 3 | . . . . . 1 . . . 1 . . . . . 1 . . . . . . . . . . . . . . . Mask 1 | . 1 . . . . . . . . . . . . . . . . . . . . . . . . . . . . . Scanalyzers 1 | . . . . . . . . . . . . . . . . . . . . . . . . . 1 . . . . . Researchers 1 | . . . . . . . . . . . . . . . . . . . . . . . . . 1 . . . . . Garrison Access 1 | . . . . . . . . . . . 1 . . . . . . . . . . . . . . . . . . . Reprogram 1 | . . . . . . . . . . . 1 . . . . . . . . . . . . . . . . . . . Data Cores Recovered 2 | . . . . . 1 . . . . . . . . . . . . . . . . . . . . 1 . . . . Used . | . . . . . . . . . . . . . . . . . . . . . . . . . . . . . . . Hacking Detections 85 | . 10 . . . 18 . . . 3 . 2 . 3 . 4 2 2 . 5 4 1 . 2 8 5 4 5 2 5 . Full Trace Events 14 | . . . . . 2 . . . . 2 . 2 1 . . 1 . . . . . . . 3 1 1 . . 1 . Feedback Events 2 | . . . . . . . . . . . . . . . . 1 . . . . . . . . 1 . . . . . Corruption 1 | . . . . . . . . . . . . . . . . 1 . . . . . . . . . . . . . . Hackware Fried 1 | . . . . . . . . . . . . . . . . . . . . . . . . . 1 . . . . . Feedback Blocked . | . . . . . . . . . . . . . . . . . . . . . . . . . . . . . . . Robot Schematics Acquired 12 | . . . . . 1 . . . . . . . . . . . . . . . . . . . 4 . 3 4 . . Robots Built 4 | . . . . . . . . . 4 . . . . . . . . . . . . . . . . . . . . . Authchips 1 | . . . . . . . . . 1 . . . . . . . . . . . . . . . . . . . . . Time 40 | . . . . . . . . . 40 . . . . . . . . . . . . . . . . . . . . . Total Robot Build Rating 4 | . . . . . . . . . 4 . . . . . . . . . . . . . . . . . . . . . Part Schematics Acquired 52 | . 1 . . 1 6 . . . . . . 1 . . . . . . . . . . . . 14 . 15 14 . . Parts Built 8 | . . . . . 1 . . . 2 . . . 1 . . . . . 1 . . . . 2 . . . . 1 . Authchips 6 | . . . . . 1 . . . 2 . . . 1 . . . . . 1 . . . . 1 . . . . . . Time 464 | . . . . . 76 . . . 100 . . . 35 . . . . . 76 . . . . 152 . . . . 25 . Total Part Build Rating 41 | . . . . . 5 . . . 10 . . . 6 . . . . . 5 . . . . 10 . . . . 5 . Part Studies Acquired 7 | . . . . . 1 . . . . . . . . . . . . . . . . . . 3 3 . . . . . Parts Repaired 5 | . 1 . . . 2 . . . . . . . . . . . . . . 1 . . . . . . 1 . . . Time 343 | . 26 . . . 153 . . . . . . . . . . . . . . 56 . . . . . . 108 . . . Parts Recycled . | . . . . . . . . . . . . . . . . . . . . . . . . . . . . . . . Recycled Matter . | . . . . . . . . . . . . . . . . . . . . . . . . . . . . . . . Retrieved Matter . | . . . . . . . . . . . . . . . . . . . . . . . . . . . . . . . Retrieved Components 10 | . 9 . . . . . . . 1 . . . . . . . . . . . . . . . . . . . . . Parts Scanalyzed 7 | . . . . . 5 . . . . . . . . . . . . . . . . . . 1 1 . . . . . Part Schematics Acquired 6 | . . . . . 5 . . . . . . . . . . . . . . . . . . . 1 . . . . . Parts Damaged 2 | . . . . . 2 . . . . . . . . . . . . . . . . . . . . . . . . . Bothacking | -11 -10 -10 -9 -9 -6 -6 -6 -6 -5 -5 -5 -5 -5 -5 -5 -5 -4 -4 -4 -4 -4 -4 -4 -3 -3 -2 -2 -2 -1 -1 ------------ Run | Yrd Mat Sub Rec Scr Fac Was Fac DSF Fac Gar Fac Gar Fac Gar Fac Gar Fac Was Fac Ext Cet Arc Hub Res Tes Res Qua Frg Acc Com Used RIF Installer 5 | . . . . . . . . . . 1 . 1 . 2 . 1 . . . . . . . . . . . . . . Command Fork 1 | . . . . . . . . . . . . 1 . . . . . . . . . . . . . . . . . . Threat Obfuscator 1 | . . . . . . . . . . . . . . 1 . . . . . . . . . . . . . . . . Watcher Feeds 1 | . . . . . . . . . . . . . . . . 1 . . . . . . . . . . . . . . Patrol Navigation 1 | . . . . . . . . . . . . . . 1 . . . . . . . . . . . . . . . . Robots Hacked 37 | . . . . . 1 . . . . . 6 3 . 2 3 3 4 4 1 2 . . . . 5 3 . . . . Non-combat 21 | . . . . . 1 . . . . . 4 . . 1 3 . 4 . 1 1 . . . . 3 3 . . . . Combat 16 | . . . . . . . . . . . 2 3 . 1 . 3 . 4 . 1 . . . . 2 . . . . . Robot Hacks Applied 47 | . . . . . 1 . . . . . 8 3 . 9 3 3 4 5 1 2 . . . . 5 3 . . . . parse_system 4 | . . . . . . . . . . . . . . 1 . . . 1 . 1 . . . . 1 . . . . . find_chute 2 | . . . . . 1 . . . . . . . . . . . 1 . . . . . . . . . . . . . find_fabricator 2 | . . . . . . . . . . . 1 . . . . . . . . . . . . . . 1 . . . . drop_inventory 6 | . . . . . . . . . . . 2 . . . . . 2 . . 1 . . . . 1 . . . . . find_recycling 2 | . . . . . . . . . . . 1 . . . . . . . . . . . . . . 1 . . . . ignore_parts 2 | . . . . . . . . . . . . . . . . . 1 . . . . . . . . 1 . . . . purge_threat 6 | . . . . . . . . . . . . . . 6 . . . . . . . . . . . . . . . . locate_traps 1 | . . . . . . . . . . . . . . 1 . . . . . . . . . . . . . . . . map_route 2 | . . . . . . . . . . . . . . . 1 . . . 1 . . . . . . . . . . . ignore_targets 4 | . . . . . . . . . . . . . . . . . . 4 . . . . . . . . . . . . find_garrison 1 | . . . . . . . . . . . 1 . . . . . . . . . . . . . . . . . . . disable_weapons 1 | . . . . . . . . . . . . 1 . . . . . . . . . . . . . . . . . . streamctrl_low 1 | . . . . . . . . . . . . . . . . . . . . . . . . . 1 . . . . . formatsys_low 6 | . . . . . . . . . . . 1 . . 1 2 . . . . . . . . . 2 . . . . . formatsys_high 7 | . . . . . . . . . . . 2 2 . . . 3 . . . . . . . . . . . . . . Relay Couplers Released 60 | . . . . . . . . . . 12 1 10 . 22 2 6 . . . . . . 2 2 . 2 . . 1 . Machine Destruction 60 | . . . . . . . . . . 12 1 10 . 22 2 6 . . . . . . 2 2 . 2 . . 1 . Attached 11 | . . . . . . . . . . 1 1 1 . 2 2 2 1 . . . . . . 1 . . . . . . Fabnet Peak Effective % . | . . . . . . . . . . . . . . . . . . . . . . . . . . . . . . . Robots Rewired 54 | . . . . . . . . . . . . 5 . 24 1 . . . . 15 . . . . 3 6 . . . . Allies Hacked 21 | . . . . . . . . . . . . 1 2 2 1 . . . 1 1 . . . . 4 1 5 3 . . Hacks Repelled . | . . . . . . . . . . . . . . . . . . . . . . . . . . . . . . . Allies | -11 -10 -10 -9 -9 -6 -6 -6 -6 -5 -5 -5 -5 -5 -5 -5 -5 -4 -4 -4 -4 -4 -4 -4 -3 -3 -2 -2 -2 -1 -1 -------- Run | Yrd Mat Sub Rec Scr Fac Was Fac DSF Fac Gar Fac Gar Fac Gar Fac Gar Fac Was Fac Ext Cet Arc Hub Res Tes Res Qua Frg Acc Com Total Allies 226 | . . . . . 16 2 . . 11 . 24 7 10 25 8 5 2 19 3 25 5 . 4 2 21 14 12 3 8 . Largest Group 27 | . . . . . 9 6 6 6 12 12 12 8 10 16 19 3 4 19 10 25 27 27 12 2 6 6 5 4 3 . Highest-Rated Group 1406 | . . . . . 90 77 77 77 104 104 151 360 380 379 406 175 95 702 406 1015 1406 1406 654 20 147 163 62 51 30 . Highest-Rated Ally 159 | . . . . . 10 31 31 31 10 13 29 68 68 41 30 95 49 50 46 159 159 159 96 10 56 69 18 22 10 . Total Orders 45 | . . . . 7 . . . . . . 3 5 . . 2 . . . . . . 10 3 7 7 1 . . . . STAY 12 | . . . . 4 . . . . . . . 2 . . . . . . . . . 1 3 . 1 1 . . . . FOLLOW 14 | . . . . 3 . . . . . . . 2 . . . . . . . . . 9 . . . . . . . . AID 7 | . . . . . . . . . . . 3 1 . . 2 . . . . . . . . . 1 . . . . . EXPLORE 10 | . . . . . . . . . . . . . . . . . . . . . . . . 6 4 . . . . . RETURN 2 | . . . . . . . . . . . . . . . . . . . . . . . . 1 1 . . . . . Ally Attacks 2044 | . . . . . 111 21 . 21 61 91 236 81 109 109 89 38 6 139 34 198 32 29 134 6 137 96 121 98 47 . Total Damage 40188 | . . . . . 1302 207 . 220 741 1169 2924 1367 3606 1770 1152 782 123 5274 958 4532 670 577 4110 81 2191 2171 1919 1755 587 . Kills 327 | . . . . . 23 1 . 1 11 19 42 18 29 16 13 2 . 13 7 35 5 4 24 . 26 8 14 12 4 . Allies Corrupted 18 | . . . . . 1 . . . 1 1 . 1 2 1 1 . . . 1 1 . . 5 . . . . 2 1 . Allies Melted 2 | . . . . . . . . . . . 1 . . . . . . . . . . . . . . 1 . . . . Intel | -11 -10 -10 -9 -9 -6 -6 -6 -6 -5 -5 -5 -5 -5 -5 -5 -5 -4 -4 -4 -4 -4 -4 -4 -3 -3 -2 -2 -2 -1 -1 ------- Run | Yrd Mat Sub Rec Scr Fac Was Fac DSF Fac Gar Fac Gar Fac Gar Fac Gar Fac Was Fac Ext Cet Arc Hub Res Tes Res Qua Frg Acc Com Active Infowar (turns) 28622 | 30 . 400 . . 2941 131 43 161 705 824 875 1382 549 1946 986 1051 351 1801 647 1250 355 1570 870 1068 1138 782 1765 3335 1355 311 Optics 23060 | . . . . . 1023 . . 140 705 824 875 1382 549 1946 270 1047 351 1801 647 1250 355 1570 870 681 121 782 1765 2443 1355 308 Sensors 10409 | . . . . . 1654 131 43 23 702 124 716 61 549 380 716 4 296 . 19 73 . . 431 715 1058 219 1099 1396 . . A.S.S. 1658 | . . . . . . . . . . . . . . . . . . . . . . . . . . . . . 1350 308 IFF 897 | . . . . . . . . . . . . . . . . . . . . . . . . . . 243 654 . . . Terrain 176 | . . . . . . . . . . . . . . . . . . . . . . . . 176 . . . . . . Structural 4706 | . . 400 . . 112 . . 44 156 . . . . . 7 . 7 1799 258 36 . . 2 367 . 437 701 380 . . Seismic 407 | 30 . . . . . . . . . . . . . . . . . . . . . . . 377 . . . . . . Cloaking 1301 | . . . . . . . . . . . . . . . . . . . . . . . . . . . . 10 1044 247 Jamming 4434 | . . . . . 1593 . . . . . . . . 407 986 76 . . . 273 . 237 862 . . . . . . . Robot Analysis Total . | . . . . . . . . . . . . . . . . . . . . . . . . . . . . . . . Derelict Logs Recovered 5 | . . . . 5 . . . . . . . . . . . . . . . . . . . . . . . . . . Drone Launches 17 | . . . . 3 . . . . . . . . . . . . . . . . . . . 9 5 . . . . . Drone Recoveries 5 | . . . . . . . . . . . . . . . . . . . . . . . . . 5 . . . . . Exploration | -11 -10 -10 -9 -9 -6 -6 -6 -6 -5 -5 -5 -5 -5 -5 -5 -5 -4 -4 -4 -4 -4 -4 -4 -3 -3 -2 -2 -2 -1 -1 ------------- Run | Yrd Mat Sub Rec Scr Fac Was Fac DSF Fac Gar Fac Gar Fac Gar Fac Gar Fac Was Fac Ext Cet Arc Hub Res Tes Res Qua Frg Acc Com Turns Passed 46322 | 78 1222 3594 847 11149 3049 131 43 161 705 824 875 1382 549 1946 986 1051 351 1801 647 1250 355 1570 870 1068 1407 782 1765 4143 1355 366 Spaces Moved 21381 | 52 882 1570 102 2477 1997 85 36 81 470 478 511 873 400 1121 636 567 231 222 462 677 163 339 512 720 910 420 1110 2291 786 200 Core 393 | 4 . . . 205 97 . . . . . . . . . . . . 36 . . . 36 . . . . . . . 15 Treads . | . . . . . . . . . . . . . . . . . . . . . . . . . . . . . . . Legs 20988 | 48 882 1570 102 2272 1900 85 36 81 470 478 511 873 400 1121 636 567 231 186 462 677 163 303 512 720 910 420 1110 2291 786 185 Wheels . | . . . . . . . . . . . . . . . . . . . . . . . . . . . . . . . Hover . | . . . . . . . . . . . . . . . . . . . . . . . . . . . . . . . Flight . | . . . . . . . . . . . . . . . . . . . . . . . . . . . . . . . Fastest Speed 50 | 50 120 120 820 50 50 120 120 120 120 118 116 118 116 120 123 106 106 116 116 116 126 126 120 111 110 101 107 100 110 50 Average Speed 173 | 114 120 214 820 448 115 120 120 120 120 119 117 118 118 130 124 128 119 324 116 132 131 393 129 112 111 110 110 112 110 105 Slowest Speed 2100 | 120 190 820 820 820 120 120 120 120 120 120 118 118 120 203 220 215 202 1400 185 206 209 2100 220 115 116 115 186 196 110 110 Overloaded Moves . | . . . . . . . . . . . . . . . . . . . . . . . . . . . . . . . Propulsion Burnouts . | . . . . . . . . . . . . . . . . . . . . . . . . . . . . . . . Robots Hopped . | . . . . . . . . . . . . . . . . . . . . . . . . . . . . . . . Potential Cave-ins 24 | . . 3 . . . . . . . . . . . . . . . . . . . . . . . . . 12 4 5 Cave-ins Triggered 2 | . . . . . . . . . . . . . . . . . . . . . . . . . . . . 1 . 1 Teleports 1 | . . . . . . . . . . . . . . . . . . . . . . . . . . . . 1 . . Exploration Rate (%) 51 | 4 98 66 17 84 49 72 2 90 12 60 18 98 13 96 22 58 16 93 13 92 73 88 48 35 96 18 77 44 29 13 Regions Visited 30 Branch Regions 11 Pre-discovered Areas 8 | . . 1 . 7 . . . . . . . . . . . . . . . . . . . . . . . . . . Known Exits Taken 15 | . . . . . . . 1 . 1 . 1 . 1 . 1 . . . 1 1 1 1 1 1 1 . 1 1 1 . Unknown Exits Taken 6 | 1 1 1 1 1 . . . . . . . . . . . . . . . . . . . . . 1 . . . . Scrap Searched 14 | . . 9 . 5 . . . . . . . . . . . . . . . . . . . . . . . . . . Spaces Dug 482 | . . 13 1 1 16 . . . 27 40 21 52 1 33 43 17 . . 2 14 15 . 38 55 1 2 7 5 41 37 Terrain Destroyed 1921 | . . 67 3 1 24 190 . 24 42 45 81 80 1 82 311 114 82 3 7 20 45 3 62 123 79 60 35 92 197 48 Melee 20 | . . . . 1 8 . . . . . . . . . . . . . . . . . . 3 . . 6 . 1 1 Projectile 424 | . . 11 3 . 16 . . . 6 7 2 39 1 27 6 15 . 3 7 20 15 3 12 10 19 17 6 58 116 5 AOE 1470 | . . 56 . . . 190 . 24 36 38 79 41 . 55 305 99 82 . . . 30 . 50 110 60 41 22 34 77 41 Terrain Rammed . | . . . . . . . . . . . . . . . . . . . . . . . . . . . . . . . Walls Destroyed . | . . . . . . . . . . . . . . . . . . . . . . . . . . . . . . . Machines Disabled . | . . . . . . . . . . . . . . . . . . . . . . . . . . . . . . . Actions | -11 -10 -10 -9 -9 -6 -6 -6 -6 -5 -5 -5 -5 -5 -5 -5 -5 -4 -4 -4 -4 -4 -4 -4 -3 -3 -2 -2 -2 -1 -1 --------- Run | Yrd Mat Sub Rec Scr Fac Was Fac DSF Fac Gar Fac Gar Fac Gar Fac Gar Fac Was Fac Ext Cet Arc Hub Res Tes Res Qua Frg Acc Com Total 28715 | 65 985 1738 116 2524 2531 97 36 128 571 670 743 1134 466 1510 759 812 293 1281 541 967 282 530 651 909 1196 667 1514 3538 1134 327 Wait 3038 | 2 41 31 . 11 172 1 1 19 51 59 149 93 40 76 31 72 15 1005 17 162 70 137 42 29 32 51 132 359 102 36 Move 21353 | 51 881 1569 101 2476 1997 84 35 80 470 477 510 872 400 1120 636 566 231 221 461 676 162 338 511 719 909 419 1109 2288 785 199 Hop . | . . . . . . . . . . . . . . . . . . . . . . . . . . . . . . . Pick Up 366 | 4 11 23 10 12 38 2 . 2 8 11 5 4 1 14 4 15 3 2 5 3 3 2 8 25 20 15 22 79 12 3 Fast Attach 272 | 7 4 6 . 2 26 . . 1 . 4 6 . 1 7 6 12 3 1 6 5 4 3 5 17 25 9 22 79 4 7 Attach 198 | . . 3 . 4 23 . . . 5 2 4 1 2 13 1 8 2 1 1 3 3 1 7 13 8 5 19 40 10 19 Detach 63 | . . . . 1 13 . . 1 . . . . 2 3 . 4 . . . . 3 . 1 2 2 1 6 11 4 9 Swap 542 | . 4 18 1 1 33 1 . 12 12 18 18 19 7 21 25 27 7 4 10 21 3 1 13 16 36 21 33 109 42 9 Drop 535 | . 10 28 1 12 55 2 . 5 4 15 15 7 4 21 11 21 3 1 9 15 8 4 12 37 40 18 54 116 4 3 Fire 1778 | 1 34 54 3 . 60 7 . 8 18 78 33 90 9 174 44 86 24 46 29 78 26 44 49 40 118 128 64 245 166 22 Melee 350 | . . 6 . 4 61 . . . . . . . . . . . . . . . . . . 6 . . 50 208 5 10 Ram 8 | . . . . . . . . . . . . . . . . . . . . . . . . . . . . . . 8 Kick 16 | . . . . . . . . . 2 . 2 . . . . . 5 . 1 . . . 2 1 . . 1 1 . 1 Crush . | . . . . . . . . . . . . . . . . . . . . . . . . . . . . . . . Escape Stasis 41 | . . . . . . . . . . 3 . 25 . 5 . . . . . . . . . . 4 . . 3 . 1 Rewire 80 | . . . . . . . . . . . . 21 . 55 . . . . . 1 . . . . 1 . 2 . . . Trap 48 | . . . . 1 47 . . . . . . . . . . . . . . . . . . . . . . . . . Miscellaneous 27 | . . . . . 6 . . . 1 3 1 2 . 1 1 1 . . 2 3 . . 1 4 1 . . . . . Route ------- -11/Scrapyard -10/Materials (discovered 5 exits: [*Mat x3] / [*Min] / [*Sub]) -10/Subcaves (discovered 4 exits: [*Mat x2] / [*Rec] / *Scr) -9/Recycling -9/Scraptown -6/Factory (discovered 5 exits: *Fac x3 / *Low x2) -6/Waste -6/Factory -6/DSF -5/Factory (discovered 3 exits: Upp x2 / Gar) -5/Garrison (discovered 3 exits: *Fac x3) -5/Factory (discovered 2 exits: Upp / Gar) -5/Garrison (discovered 4 exits: *Fac x3 / *Fac) -5/Factory -5/Garrison (discovered 4 exits: *Fac x3 / *Fac) -5/Factory -5/Garrison (discovered 3 exits: *Fac x3) -4/Factory (discovered 2 exits: Res x2) -4/Waste -4/Factory (discovered 4 exits: Upp x2 / *Ext x2) -4/Extension (discovered 2 exits: *Res / *Cet) -4/Cetus (discovered 2 exits: *Res / *Arc) -4/Archives (discovered 3 exits: *Res / *Hub x2) -4/Hub_04(d) (discovered 3 exits: *Res x2 / Gar) -3/Research (discovered 4 exits: *Res / Arm / *Tes x2) -3/Testing -2/Research -2/Quarantine (discovered 3 exits: *Acc / [*Sec] / *Frg) -2/Protoforge -1/Access (discovered 2 exits: [*Sur] / *Com) -1/Command History --------- Turn | Location | Event 3 | -11/Scrapyard | Discovered new exit (range 15) 79 | -11/Scrapyard | Entered Materials 80 | -10/Materials | Met a group of wandering Federalists 173 | -10/Materials | Discovered new exit (range 11) 246 | -10/Materials | Discovered new exit (range 11) 291 | -10/Materials | Central database locked down 305 | -10/Materials | Build established: Mutant 515 | -10/Materials | Discovered new exit (range 13) 576 | -10/Materials | Repaired Aluminum Leg 749 | -10/Materials | Discovered new exit (range 9) 965 | -10/Materials | Discovered new exit (range 10) 1301 | -10/Materials | Entered Subcaves 1302 | -10/Subcaves | Continued accompanying wandering Federalists (5) 1302 | -10/Subcaves | Approached by a straggling Scientist 1466 | -10/Subcaves | Shifting Twisted Machinery released Barrage Gun 1480 | -10/Subcaves | Shifting Twisted Machinery released Battle Cannon 1484 | -10/Subcaves | Shifting Twisted Machinery released Battle Rifle 1488 | -10/Subcaves | Learned location of Zion (-7) 1488 | -10/Subcaves | Met a Zionite searching for "candidates" 1533 | -10/Subcaves | Disturbed a concealed Subdweller 1553 | -10/Subcaves | Wandering Federalist uncovered a shortcut to Scraptown 1640 | -10/Subcaves | A swath of the cavern ceiling suddenly collapsed 2196 | -10/Subcaves | Discovered new exit (range 11) 2657 | -10/Subcaves | Ambushed by Subdweller buried in earth 2913 | -10/Subcaves | Discovered new exit (range 9) 3163 | -10/Subcaves | Shifting Twisted Machinery released Mak. Hammer 3507 | -10/Subcaves | A swath of the cavern ceiling suddenly collapsed 3706 | -10/Subcaves | Shifting Twisted Machinery released Sub. Beam Cannon 3720 | -10/Subcaves | Shifting Twisted Machinery released Sub. Machine Gun 3759 | -10/Subcaves | Ambushed by Subdweller buried in earth 3801 | -10/Subcaves | Discovered new exit (range 4) 4035 | -10/Subcaves | A Subdweller sparked back to life 4035 | -10/Subcaves | A Subdweller sparked back to life 4035 | -10/Subcaves | A Subdweller sparked back to life 4068 | -10/Subcaves | Found Prototype Flight Unit 4363 | -10/Subcaves | Build established: Hauler-Mutant 4895 | -10/Subcaves | Entered Recycling 5553 | -9/Recycling | Scanned before Scraplab entrance 5668 | -9/Recycling | Entered Scraplab 5733 | -9/Recycling | Discovered new exit (range 2) 5742 | -9/Recycling | Entered Scraptown 6751 | -9/Scraptown | Visited Cave Peace 6907 | -9/Scraptown | Visited IN-MT5's Study 7177 | -9/Scraptown | Scanned Subdweller tech in exchange for log data 7194 | -9/Scraptown | Learned location of Quarantine (-2) 7202 | -9/Scraptown | Learned Research terminal intel 7210 | -9/Scraptown | Learned location of Extension (-4) 7218 | -9/Scraptown | Learned 8 Research zone layouts 7309 | -9/Scraptown | Discovered new exit (range 11) 7784 | -9/Scraptown | Heard Great Nut preacher, LISTEN AND RECITE! 9547 | -9/Scraptown | Visited Cyclists 9662 | -9/Scraptown | Visited CR-KLE's Repair Center 9711 | -9/Scraptown | Visited SPCMW 10097 | -9/Scraptown | Visited UFD Registry 10097 | -9/Scraptown | Registered with UFD as "Monosys" 10293 | -9/Scraptown | Visited Observation Area 10531 | -9/Scraptown | Visited Science Guys 10925 | -9/Scraptown | Delivered Scrap Shield to a Scientist 11277 | -9/Scraptown | Visited Scrapoid Research Area 11417 | -9/Scraptown | Visited Supply Room 11605 | -9/Scraptown | Visited Cartography Club 11851 | -9/Scraptown | Visited Curators Association 12155 | -9/Scraptown | Visited DA-N13 Charitable Foundation 12229 | -9/Scraptown | Found DCF Scrap (30 items) 12917 | -9/Scraptown | Entered Cyclist Reading Room 14336 | -9/Scraptown | Guru changed UFD alias to "Beamchassis" 15622 | -9/Scraptown | System corruption cleaned by C-Scrubber 15737 | -9/Scraptown | Build established: Mutant 15966 | -9/Scraptown | Warned about trapping Scraptown 16143 | -9/Scraptown | Found Surveybot 17 Chip 16214 | -9/Scraptown | Learned location of Recycling (-9) 16214 | -9/Scraptown | Learned location of Upper Caves (-4) 16214 | -9/Scraptown | Learned 12 Lower Caves zone layouts 16214 | -9/Scraptown | Learned 8 Proximity Caves zone layouts 16214 | -9/Scraptown | Learned 16 Proximity Caves zone layouts 16214 | -9/Scraptown | Learned 20 Proximity Caves zone layouts 16214 | -9/Scraptown | Learned 4 Armory zone layouts 16214 | -9/Scraptown | Learned location of 3 exits from Factory 16214 | -9/Scraptown | Learned location of 2 exits from Upper Caves 16250 | -9/Scraptown | Found Deep Structural Scanner 16867 | -9/Scraptown | Attacked by Scraptown defenders 16891 | -9/Scraptown | Entered Factory 16891 | -6/Factory | Evolved 8 slots: Power x1, Propulsion x3, Utility x4 16892 | -6/Factory | Identified exit to Factory 16892 | -6/Factory | Identified exit to Lower Caves 16920 | -6/Factory | Lost 3 allies 17049 | -6/Factory | Found Prototype Processor 17049 | -6/Factory | Identified Exp. Targeting Computer 17093 | -6/Factory | Found Exp. Targeting Computer 17139 | -6/Factory | Spotted B-75 Beast 17329 | -6/Factory | Build established: Scavenger-Mutant 17561 | -6/Factory | Fabricated IN-MT5's Pitchfork "Insurrection"? 17812 | -6/Factory | Reprogrammed and armed K-01 Serf 17828 | -6/Factory | Reprogrammed and armed K-01 Serf 17845 | -6/Factory | Reprogrammed and armed K-01 Serf 18067 | -6/Factory | Reprogrammed and armed K-01 Serf 18078 | -6/Factory | Reprogrammed and armed K-01 Serf 18113 | -6/Factory | Reprogrammed and armed K-01 Serf 18127 | -6/Factory | Reprogrammed and armed K-01 Serf 18133 | -6/Factory | Reprogrammed and armed K-01 Serf 18203 | -6/Factory | Reprogrammed and armed K-01 Serf 18382 | -6/Factory | Central database locked down 18801 | -6/Factory | Reprogrammed and armed K-01 Serf 18835 | -6/Factory | Build established: Mutant 18835 | -6/Factory | Discovered exit to Factory (range 6) 18853 | -6/Factory | Lost 5 allies 18922 | -6/Factory | Repaired Broken CPS Tube? 19110 | -6/Factory | Found Prototype Launcher 19225 | -6/Factory | Reprogrammed and armed K-01 Serf 19234 | -6/Factory | Identified Scatter Rocket Array 19249 | -6/Factory | Reprogrammed and armed K-01 Serf 19286 | -6/Factory | Reprogrammed and armed K-01 Serf 19292 | -6/Factory | Reprogrammed and armed K-01 Serf 19328 | -6/Factory | Reprogrammed and armed K-01 Serf 19632 | -6/Factory | Repaired Broken Scatter Rocket Array? 19696 | -6/Factory | Build established: Scavenger-Mutant 19897 | -6/Factory | Reprogrammed and armed K-01 Serf 19940 | -6/Factory | Sucked down chute 19940 | -6/Factory | Entered Waste 19940 | -6/Waste | Met up with 1 ally sucked down the chute earlier 19941 | -6/Waste | Met a frightened Derelict 19955 | -6/Waste | EMP discharged 19955 | -6/Waste | System corruption reached 10% 19968 | -6/Waste | Spotted C-40 Crusher 19969 | -6/Waste | Spotted C-40 Crusher 19978 | -6/Waste | Destroyed C-40 Crusher 19978 | -6/Waste | Destroyed C-40 Crusher 19980 | -6/Waste | 4 allies followed down the chute 19990 | -6/Waste | Spotted C-40 Crusher 19992 | -6/Waste | Destroyed C-40 Crusher 20003 | -6/Waste | Spotted C-40 Crusher 20009 | -6/Waste | Spotted C-40 Crusher 20010 | -6/Waste | Allies destroyed C-40 Crusher 20011 | -6/Waste | Spotted C-40 Crusher 20014 | -6/Waste | Destroyed C-40 Crusher 20014 | -6/Waste | Destroyed C-40 Crusher 20055 | -6/Waste | EMP discharged 20056 | -6/Waste | Discovered new exit (range 13) 20070 | -6/Waste | Identified exit to Factory 20071 | -6/Waste | Entered Factory 20071 | -6/Factory | Accompanied by 6 allies 20113 | -6/Factory | Identified exit to DSF 20114 | -6/Factory | Entered DSF 20114 | -6/DSF | Accompanied by 6 allies 20151 | -6/DSF | Additional patrols routed to DSF 20212 | -6/DSF | Discovered exit to Factory (range 17) 20275 | -6/DSF | Entered Factory 20275 | -5/Factory | Accompanied by 4 allies 20275 | -5/Factory | Evolved 2 slots: Utility x2 20276 | -5/Factory | Identified exit to Upper Caves 20421 | -5/Factory | Reprogrammed and armed K-01 Serf 20588 | -5/Factory | Build established: Skirmisher 20673 | -5/Factory | Fabricated IN-MT5's Pitchfork "Insurrection"? 20690 | -5/Factory | Reprogrammed and armed K-01 Serf 20723 | -5/Factory | Reprogrammed and armed K-01 Serf 20726 | -5/Factory | Reprogrammed and armed K-01 Serf 20742 | -5/Factory | Fabricated K-01 Serf? 20874 | -5/Factory | Fabricated IN-MT5's Pitchfork "Insurrection"? 20884 | -5/Factory | Garrison activated, responded to threat 20968 | -5/Factory | Reprogrammed and armed K-01 Serf 20969 | -5/Factory | Reprogrammed and armed K-01 Serf 20974 | -5/Factory | Reprogrammed and armed K-01 Serf 20978 | -5/Factory | Identified exit to Garrison 20980 | -5/Factory | Entered Garrison 20980 | -5/Garrison | Accompanied by 12 allies 21020 | -5/Garrison | Triggered checkpoint 21026 | -5/Garrison | Build established: Commander-Skirmisher 21044 | -5/Garrison | Garrison Relay disabled 21104 | -5/Garrison | Discovered new exit (range 33) 21104 | -5/Garrison | Discovered new exit (range 67) 21104 | -5/Garrison | Discovered new exit (range 59) 21146 | -5/Garrison | Spotted B-75 Beast 21162 | -5/Garrison | Triggered checkpoint 21167 | -5/Garrison | Allies destroyed B-75 Beast 21173 | -5/Garrison | Triggered checkpoint 21182 | -5/Garrison | Triggered checkpoint 21203 | -5/Garrison | Destroyed 12 combat bots 21213 | -5/Garrison | Lost 3 allies 21314 | -5/Garrison | Triggered checkpoint 21364 | -5/Garrison | Garrison Relay disabled 21383 | -5/Garrison | Installed Relay Interface Framework 21409 | -5/Garrison | Build established: Scavenger-Mutant 21540 | -5/Garrison | Triggered checkpoint 21648 | -5/Garrison | Triggered checkpoint 21676 | -5/Garrison | P-70 Sage assimilated allied K-01 Serf 21703 | -5/Garrison | Reprogrammed and armed K-01 Serf 21708 | -5/Garrison | Garrison Relay disabled 21797 | -5/Garrison | Identified exit to Factory 21804 | -5/Garrison | Entered Factory 21804 | -5/Factory | Accompanied by 5 allies 21865 | -5/Factory | Garrison activated, responded to threat 21998 | -5/Factory | Reprogrammed and armed K-01 Serf 21999 | -5/Factory | Reprogrammed and armed K-01 Serf 22018 | -5/Factory | Lost 3 allies 22020 | -5/Factory | Reprogrammed and armed K-01 Serf 22025 | -5/Factory | Reprogrammed and armed K-01 Serf 22067 | -5/Factory | Lost 3 allies 22104 | -5/Factory | First assault squad dispatched 22127 | -5/Factory | Reprogrammed and armed K-01 Serf 22239 | -5/Factory | Build established: Scavenger-Skirmisher 22248 | -5/Factory | Garrison activated, responded to threat 22344 | -5/Factory | Identified exit to Garrison 22362 | -5/Factory | Reprogrammed and armed K-01 Serf 22366 | -5/Factory | Reprogrammed and armed K-01 Serf 22373 | -5/Factory | Reprogrammed and armed K-01 Serf 22377 | -5/Factory | Reprogrammed and armed K-01 Serf 22419 | -5/Factory | Reprogrammed and armed K-01 Serf 22434 | -5/Factory | Lost 4 allies 22483 | -5/Factory | Reprogrammed and armed K-01 Serf 22515 | -5/Factory | Reprogrammed and armed K-01 Serf 22517 | -5/Factory | Reprogrammed and armed K-01 Serf 22603 | -5/Factory | Cargo convoy interrupted 22608 | -5/Factory | Reprogrammed and armed K-01 Serf 22610 | -5/Factory | High security lockdown imminent 22613 | -5/Factory | Reprogrammed and armed K-01 Serf 22624 | -5/Factory | Reprogrammed and armed K-01 Serf 22626 | -5/Factory | Reprogrammed and armed K-01 Serf 22630 | -5/Factory | Reprogrammed and armed K-01 Serf 22666 | -5/Factory | Lost 8 allies 22679 | -5/Factory | Entered Garrison 22679 | -5/Garrison | Accompanied by 8 allies 22744 | -5/Garrison | P-70 Sage assimilated allied K-01 Serf 22746 | -5/Garrison | P-70 Sage assimilated allied K-01 Serf 22755 | -5/Garrison | Triggered checkpoint 22755 | -5/Garrison | Reprogrammed and armed K-01 Serf 22758 | -5/Garrison | Reprogrammed and armed K-01 Serf 22772 | -5/Garrison | Destroyed 8 combat bots 22786 | -5/Garrison | Lost 4 allies 22893 | -5/Garrison | Triggered checkpoint 22899 | -5/Garrison | Triggered checkpoint 23019 | -5/Garrison | Garrison Relay disabled 23155 | -5/Garrison | Triggered checkpoint 23258 | -5/Garrison | Garrison Relay disabled 23283 | -5/Garrison | Discovered new exit (range 9) 23296 | -5/Garrison | Identified exit to Factory 23375 | -5/Garrison | Triggered checkpoint 23393 | -5/Garrison | Triggered checkpoint 23473 | -5/Garrison | Discovered exit to Factory (range 11) 23581 | -5/Garrison | Garrison Relay disabled 23713 | -5/Garrison | Triggered checkpoint 23755 | -5/Garrison | Triggered checkpoint 23833 | -5/Garrison | Discovered new exit (range 3) 23834 | -5/Garrison | Identified exit to Factory 23925 | -5/Garrison | Expanded RIF knowledge: Command Fork 23965 | -5/Garrison | Discovered exit to Factory (range 10) 24061 | -5/Garrison | Entered Factory 24061 | -5/Factory | Accompanied by 8 allies 24095 | -5/Factory | Garrison activated, responded to threat 24143 | -5/Factory | Build established: Commander-Skirmisher 24294 | -5/Factory | Reprogrammed and armed K-01 Serf 24298 | -5/Factory | Reprogrammed and armed K-01 Serf 24325 | -5/Factory | Reprogrammed and armed K-01 Serf 24331 | -5/Factory | Reprogrammed and armed K-01 Serf 24361 | -5/Factory | First assault squad dispatched 24396 | -5/Factory | Fabricated Med. Armored Exoskeleton? 24459 | -5/Factory | Reprogrammed and armed K-01 Serf 24495 | -5/Factory | Reprogrammed and armed K-01 Serf 24502 | -5/Factory | Lost 11 allies 24504 | -5/Factory | Reprogrammed and armed K-01 Serf 24507 | -5/Factory | Reprogrammed and armed K-01 Serf 24515 | -5/Factory | Reprogrammed and armed K-01 Serf 24562 | -5/Factory | Reprogrammed and armed K-01 Serf 24610 | -5/Factory | Identified exit to Garrison 24610 | -5/Factory | Entered Garrison 24610 | -5/Garrison | Accompanied by 3 allies 24749 | -5/Garrison | Build established: Scavenger-Skirmisher 24844 | -5/Garrison | Triggered checkpoint 24915 | -5/Garrison | Expanded RIF knowledge: Patrol Navigation 24931 | -5/Garrison | Garrison Relay disabled 24998 | -5/Garrison | Triggered checkpoint 25060 | -5/Garrison | Lost 3 allies 25342 | -5/Garrison | Discovered exit to Factory (range 4) 25370 | -5/Garrison | Triggered checkpoint 25394 | -5/Garrison | Build established: Scavenger-Mutant 25418 | -5/Garrison | H-XX Assembler disabled 25424 | -5/Garrison | Garrison Relay disabled 25920 | -5/Garrison | Triggered checkpoint 25932 | -5/Garrison | Triggered checkpoint 25996 | -5/Garrison | Garrison Relay disabled 26071 | -5/Garrison | Garrison Relay disabled 26194 | -5/Garrison | Discovered exit to Factory (range 3) 26287 | -5/Garrison | Lost 5 allies 26306 | -5/Garrison | Triggered checkpoint 26338 | -5/Garrison | Expanded RIF knowledge: Threat Obfuscation 26348 | -5/Garrison | Triggered checkpoint 26392 | -5/Garrison | Triggered checkpoint 26416 | -5/Garrison | Discovered new exit (range 3) 26439 | -5/Garrison | Build established: Commander-Mutant 26461 | -5/Garrison | Discovered exit to Factory (range 13) 26518 | -5/Garrison | Garrison Relay disabled 26556 | -5/Garrison | Entered Factory 26556 | -5/Factory | Accompanied by 13 allies 26702 | -5/Factory | Reprogrammed and armed K-01 Serf 26995 | -5/Factory | Reprogrammed and armed K-01 Serf 27081 | -5/Factory | System corruption reached 10% 27129 | -5/Factory | Reprogrammed and armed K-01 Serf 27156 | -5/Factory | First assault squad dispatched 27163 | -5/Factory | Reprogrammed and armed K-01 Serf 27189 | -5/Factory | Garrison activated, responded to threat 27250 | -5/Factory | P-70 Sage assimilated allied Soldier 6f 27252 | -5/Factory | Lost 12 allies 27542 | -5/Factory | Identified exit to Garrison 27542 | -5/Factory | Entered Garrison 27578 | -5/Garrison | Discovered exit to Factory (range 61) 27578 | -5/Garrison | Discovered exit to Factory (range 54) 27578 | -5/Garrison | Discovered exit to Factory (range 89) 27656 | -5/Garrison | Build established: Mutant 27676 | -5/Garrison | Garrison Relay disabled 27721 | -5/Garrison | Found embedded Infiltrators 27818 | -5/Garrison | Spotted B-75 Beast 27860 | -5/Garrison | Destroyed B-75 Beast 27891 | -5/Garrison | Lost 4 parts (1p1n2u) 27981 | -5/Garrison | Core integrity fell below 50% 28034 | -5/Garrison | Triggered checkpoint 28084 | -5/Garrison | Garrison Relay disabled 28118 | -5/Garrison | Build established: Scavenger-Mutant 28251 | -5/Garrison | Found Relay Coupler [Proto] 28267 | -5/Garrison | Found Relay Coupler [Proto] 28270 | -5/Garrison | Found Relay Coupler [Proto] 28276 | -5/Garrison | Found Relay Coupler [Proto] 28330 | -5/Garrison | Triggered checkpoint 28354 | -5/Garrison | Triggered checkpoint 28459 | -5/Garrison | Expanded RIF knowledge: Watcher Feeds 28518 | -5/Garrison | Build established: Bothacker-Mutant 28593 | -5/Garrison | Entered Factory 28593 | -4/Factory | Accompanied by 2 allies 28593 | -4/Factory | Evolved 2 slots: Utility x2 28594 | -4/Factory | Identified exit to Research 28714 | -4/Factory | Reprogrammed and armed K-01 Serf 28724 | -4/Factory | Reprogrammed and armed K-01 Serf 28765 | -4/Factory | Lost 4 allies 28944 | -4/Factory | Sucked down chute 28944 | -4/Factory | Entered Waste 28954 | -4/Waste | Spotted C-40 Crusher 28955 | -4/Waste | Spotted C-40 Crusher 28998 | -4/Waste | Spotted C-40 Crusher 29009 | -4/Waste | Spotted C-40 Crusher 29010 | -4/Waste | Spotted C-40 Crusher 29024 | -4/Waste | Discovered new exit (range 21) 29039 | -4/Waste | Spotted C-40 Crusher 29051 | -4/Waste | Warlord forces began an assault 29123 | -4/Waste | Allies destroyed C-40 Crusher 29143 | -4/Waste | Allies destroyed C-40 Crusher 29153 | -4/Waste | Allies destroyed C-40 Crusher 29184 | -4/Waste | Lost 6 allies 29205 | -4/Waste | Identified exit to Factory 29296 | -4/Waste | Allies destroyed C-40 Crusher 30745 | -4/Waste | Entered Factory 30745 | -4/Factory | Accompanied by 10 allies 30875 | -4/Factory | Spotted B-86 Titan 30897 | -4/Factory | Allies destroyed B-86 Titan 30951 | -4/Factory | Lost 4 allies 31079 | -4/Factory | Fabricated IN-MT5's Pitchfork "Insurrection" (x1) 31210 | -4/Factory | Identified exit to Upper Caves 31210 | -4/Factory | Identified exit to Extension 31289 | -4/Factory | Reprogrammed and armed K-01 Serf 31358 | -4/Factory | Reprogrammed and armed K-01 Serf 31380 | -4/Factory | Reprogrammed and armed K-01 Serf 31392 | -4/Factory | Entered Extension 31392 | -4/Extension | Accompanied by 6 allies 31646 | -4/Extension | Rescued a captive Derelict 31646 | -4/Extension | Rescued a captive Derelict 31971 | -4/Extension | Reprogrammed and armed K-01 Serf 31973 | -4/Extension | Reprogrammed and armed K-01 Serf 31979 | -4/Extension | Reprogrammed and armed K-01 Serf 32038 | -4/Extension | Spotted B-86 Titan 32047 | -4/Extension | Allies destroyed B-86 Titan 32050 | -4/Extension | Spotted B-86 Titan 32057 | -4/Extension | Build established: Commander-Mutant 32060 | -4/Extension | Reprogrammed and armed K-01 Serf 32073 | -4/Extension | Allies destroyed B-86 Titan 32236 | -4/Extension | Rescued A7 32353 | -4/Extension | Rescued a captive Derelict 32353 | -4/Extension | Rescued a captive Derelict 32386 | -4/Extension | Rescued a captive Derelict 32466 | -4/Extension | Repaired Med. Armored Exoskeleton 32521 | -4/Extension | Discovered exit to Research (range 10) 32523 | -4/Extension | Discovered new exit (range 6) 32542 | -4/Extension | Identified exit to Cetus 32642 | -4/Extension | Entered Cetus 32642 | -4/Cetus | Accompanied by 23 allies (A7) 32647 | -4/Cetus | Acquired a Cetus Manufacturing Module code from A7 32661 | -4/Cetus | Spotted Cetus Guard 32661 | -4/Cetus | Spotted Cetus Guard 32663 | -4/Cetus | Spotted Cetus Guard 32663 | -4/Cetus | Spotted Cetus Guard 32667 | -4/Cetus | Allies destroyed Cetus Guard 32671 | -4/Cetus | Destroyed Cetus Guard 32672 | -4/Cetus | Allies destroyed Cetus Guard 32676 | -4/Cetus | Allies destroyed Cetus Guard 32723 | -4/Cetus | Discovered new exit (range 38) 32736 | -4/Cetus | Started Cetus Manufacturing Module 32752 | -4/Cetus | Escorted A7 to Cetus Mainframe 32761 | -4/Cetus | Manufactured an Enhanced Grunt 32786 | -4/Cetus | Manufactured an Enhanced Grunt 32806 | -4/Cetus | Discovered exit to Research (range 27) 32811 | -4/Cetus | Manufactured an Enhanced Grunt 32812 | -4/Cetus | Spotted Cetus Guard 32812 | -4/Cetus | Spotted Cetus Guard 32812 | -4/Cetus | Spotted Cetus Guard 32812 | -4/Cetus | Spotted Cetus Guard 32820 | -4/Cetus | Allies destroyed Cetus Guard 32826 | -4/Cetus | Destroyed Cetus Guard 32827 | -4/Cetus | Destroyed Cetus Guard 32828 | -4/Cetus | Allies destroyed Cetus Guard 32836 | -4/Cetus | Manufactured an Enhanced Grunt 32843 | -4/Cetus | Met Revision 17 32861 | -4/Cetus | Manufactured an Enhanced Grunt 32897 | -4/Cetus | Identified exit to Archives 32997 | -4/Cetus | Entered Archives 32997 | -4/Archives | Accompanied by 27 allies (A7) 33002 | -4/Archives | Received a hacking code to weaken MAIN.C 33057 | -4/Archives | Discovered new exit (range 22) 33067 | -4/Archives | Discovered exit to Research (range 22) 33067 | -4/Archives | Discovered new exit (range 18) 33069 | -4/Archives | Lost 7 allies 34298 | -4/Archives | Identified exit to Hub_04(d) 34567 | -4/Archives | Entered Hub_04(d) 34567 | -4/Hub_04(d) | Accompanied by 12 allies 34590 | -4/Hub_04(d) | Discovered exit to Research (range 9) 34713 | -4/Hub_04(d) | Reprogrammed and armed K-01 Serf 34787 | -4/Hub_04(d) | Identified exit to Garrison 34861 | -4/Hub_04(d) | Build established: Bothacker-Mutant 34868 | -4/Hub_04(d) | Discovered exit to Research (range 3) 34914 | -4/Hub_04(d) | Reprogrammed and armed K-01 Serf 34934 | -4/Hub_04(d) | Reprogrammed and armed K-01 Serf 35167 | -4/Hub_04(d) | Spotted B-86 Titan 35177 | -4/Hub_04(d) | Network Hub disabled 35195 | -4/Hub_04(d) | Spotted Lightning 35198 | -4/Hub_04(d) | Spotted Lightning 35209 | -4/Hub_04(d) | Spotted Lightning 35214 | -4/Hub_04(d) | Destroyed Lightning 35223 | -4/Hub_04(d) | Allies destroyed Lightning 35240 | -4/Hub_04(d) | Allies destroyed Lightning 35249 | -4/Hub_04(d) | Lost 6 allies 35250 | -4/Hub_04(d) | Found Prototype Device 35251 | -4/Hub_04(d) | Identified Exp. Phase Shifter 35276 | -4/Hub_04(d) | Found Prototype Energy Cannon 35276 | -4/Hub_04(d) | Identified EMDS 35317 | -4/Hub_04(d) | First assault squad dispatched 35330 | -4/Hub_04(d) | Spotted Lightning 35332 | -4/Hub_04(d) | Spotted Lightning 35346 | -4/Hub_04(d) | Reprogrammed and armed K-01 Serf 35411 | -4/Hub_04(d) | Spotted Lightning 35411 | -4/Hub_04(d) | Spotted Lightning 35419 | -4/Hub_04(d) | Spotted Lightning 35430 | -4/Hub_04(d) | System corruption reached 10% 35437 | -4/Hub_04(d) | Entered Research 35437 | -3/Research | Evolved 2 slots: Propulsion x1, Utility x1 35439 | -3/Research | Loaded intel: 21 terminal locations 35468 | -3/Research | Identified exit to Armory 35468 | -3/Research | Identified exit to Testing 35637 | -3/Research | Revision forces began assault on 0b10 35651 | -3/Research | Discovered new exit (range 24) 35705 | -3/Research | Reprogrammed and armed K-01 Serf 35707 | -3/Research | Reprogrammed and armed K-01 Serf 35717 | -3/Research | Met up with Revision 17++ 35776 | -3/Research | Lost 6 allies 36054 | -3/Research | Spotted B-86 Titan 36054 | -3/Research | Spotted B-86 Titan 36067 | -3/Research | Spotted B-86 Titan 36070 | -3/Research | Destroyed B-86 Titan 36077 | -3/Research | Destroyed B-86 Titan 36107 | -3/Research | Lost 4 allies 36111 | -3/Research | Destroyed B-86 Titan 36132 | -3/Research | Destroyed 9 combat bots 36137 | -3/Research | Research terminal network offline 36216 | -3/Research | Fabricated IN-MT5's Pitchfork "Insurrection" (x1) 36387 | -3/Research | Fabricated IN-MT5's Pitchfork "Insurrection" (x1) 36391 | -3/Research | Lost 5 allies 36505 | -3/Research | Entered Testing 36505 | -3/Testing | Accompanied by 5 allies 36534 | -3/Testing | Found Prototype Energy Cannon 36551 | -3/Testing | Identified Hpw. Disruptor Cannon 36637 | -3/Testing | Reprogrammed and armed K-01 Serf 36639 | -3/Testing | Reprogrammed and armed K-01 Serf 36669 | -3/Testing | Found Hyp. Multirail 36701 | -3/Testing | Discovered new exit (range 68) 36726 | -3/Testing | Reprogrammed and armed K-01 Serf 36786 | -3/Testing | Reprogrammed and armed K-01 Serf 36786 | -3/Testing | Reprogrammed and armed K-01 Serf 36792 | -3/Testing | Reprogrammed and armed K-01 Serf 36895 | -3/Testing | P-80 Master assimilated allied Artificer 8a 36896 | -3/Testing | P-80 Master assimilated allied K-01 Serf 36905 | -3/Testing | Lost 3 allies 36907 | -3/Testing | Reprogrammed and armed K-01 Serf 37073 | -3/Testing | Found Prototype Device 37073 | -3/Testing | Identified Exp. Shield Generator 37132 | -3/Testing | Imp. Hacking Suite fried by hacking feedback 37185 | -3/Testing | Lost 4 allies 37220 | -3/Testing | Reprogrammed and armed K-01 Serf 37230 | -3/Testing | Found Prototype Processor 37230 | -3/Testing | Identified Spectral Analyzer 37242 | -3/Testing | Reprogrammed and armed K-01 Serf 37271 | -3/Testing | Found Prototype Energy Gun 37271 | -3/Testing | Identified Hyp. EM Gauss Rifle 37285 | -3/Testing | Reprogrammed and armed K-01 Serf 37319 | -3/Testing | Found Prototype Energy Cannon 37325 | -3/Testing | Identified Null Cannon 37369 | -3/Testing | Scanned by Researcher 37378 | -3/Testing | P-80 Master assimilated allied K-01 Serf 37380 | -3/Testing | Reprogrammed and armed K-01 Serf 37382 | -3/Testing | Reprogrammed and armed K-01 Serf 37391 | -3/Testing | Reprogrammed and armed K-01 Serf 37439 | -3/Testing | Reprogrammed and armed K-01 Serf 37456 | -3/Testing | Lost 3 allies 37595 | -3/Testing | Found Prototype Device 37595 | -3/Testing | Identified AEGIS Remote Shield 37632 | -3/Testing | Reprogrammed and armed K-01 Serf 37655 | -3/Testing | Central database locked down 37784 | -3/Testing | Reprogrammed and armed K-01 Serf 37847 | -3/Testing | Reprogrammed and armed K-01 Serf 37861 | -3/Testing | Found Prototype Device 37861 | -3/Testing | Identified Exp. Hardlight Generator 37910 | -3/Testing | Identified exit to Research 37912 | -3/Testing | Entered Research 37912 | -2/Research | Accompanied by 2 allies 37912 | -2/Research | Evolved 2 slots: Power x1, Utility x1 37938 | -2/Research | Lost 4 allies 37981 | -2/Research | Reprogrammed and armed K-01 Serf 37998 | -2/Research | Found Exp. Shield Generator 38041 | -2/Research | Reprogrammed and armed K-01 Serf 38073 | -2/Research | P-80 Master assimilated allied Assassin 8b 38090 | -2/Research | Reprogrammed and armed K-01 Serf 38114 | -2/Research | Reprogrammed and armed K-01 Serf 38126 | -2/Research | Reprogrammed and armed K-01 Serf 38140 | -2/Research | Reprogrammed and armed K-01 Serf 38189 | -2/Research | P-80 Master assimilated allied Enforcer 9b 38194 | -2/Research | Reprogrammed and armed K-01 Serf 38218 | -2/Research | Spotted B-90 Cyclops 38307 | -2/Research | Lost 4 allies 38367 | -2/Research | Found Powered Armor 38448 | -2/Research | Reprogrammed and armed K-01 Serf 38493 | -2/Research | Found Exp. Phase Shifter 38687 | -2/Research | Discovered new exit (range 9) 38694 | -2/Research | Entered Quarantine 38816 | -2/Quarantine | Repaired Centrium Medium Armor Plating 38847 | -2/Quarantine | Unchained authorized (6S-H0T) 38854 | -2/Quarantine | Reprogrammed and armed K-01 Serf 38856 | -2/Quarantine | Reprogrammed and armed K-01 Serf 38913 | -2/Quarantine | Found Alien Impact Weapon 38913 | -2/Quarantine | Identified Core Stripper 39038 | -2/Quarantine | Discovered new exit (range 20) 39106 | -2/Quarantine | Reprogrammed and armed K-01 Serf 39159 | -2/Quarantine | Found Alien Slashing Weapon 39187 | -2/Quarantine | Identified Sigix Broadsword 39224 | -2/Quarantine | Found Alien Artifact 39260 | -2/Quarantine | Identified Dimensional Node Initializer 39260 | -2/Quarantine | Initialized slip node 39271 | -2/Quarantine | Found Alien Artifact 39275 | -2/Quarantine | Found Dimensional Node Initializer 39396 | -2/Quarantine | Reprogrammed and armed K-01 Serf 39414 | -2/Quarantine | Reprogrammed and armed K-01 Serf 39460 | -2/Quarantine | Destroyed 6S-H0T 39485 | -2/Quarantine | Reprogrammed and armed K-01 Serf 39487 | -2/Quarantine | Found Prototype Ballistic Gun 39487 | -2/Quarantine | Identified 6S-H0T's Six Shooter 39586 | -2/Quarantine | Reprogrammed and armed K-01 Serf 39601 | -2/Quarantine | Reprogrammed and armed K-01 Serf 39673 | -2/Quarantine | P-80 Master assimilated allied K-01 Serf 39684 | -2/Quarantine | Reprogrammed and armed K-01 Serf 39764 | -2/Quarantine | Found Alien Artifact 39811 | -2/Quarantine | Reprogrammed and armed K-01 Serf 39827 | -2/Quarantine | Reprogrammed and armed K-01 Serf 39879 | -2/Quarantine | Build established: Scavenger-Assassin 39955 | -2/Quarantine | Reprogrammed and armed K-01 Serf 39996 | -2/Quarantine | Reprogrammed and armed K-01 Serf 40070 | -2/Quarantine | Found Alien Reactor 40070 | -2/Quarantine | Identified Matter Drive 40083 | -2/Quarantine | P-80 Master assimilated allied K-01 Serf 40084 | -2/Quarantine | P-80 Master assimilated allied K-01 Serf 40106 | -2/Quarantine | Reprogrammed and armed K-01 Serf 40111 | -2/Quarantine | Reprogrammed and armed K-01 Serf 40168 | -2/Quarantine | Spotted Fortress 40199 | -2/Quarantine | Allies destroyed Fortress 40204 | -2/Quarantine | Found Prototype Reactor 40204 | -2/Quarantine | Identified Vortex Chain Reactor 40207 | -2/Quarantine | Found Prototype Device 40207 | -2/Quarantine | Identified Thermal Barrier 40292 | -2/Quarantine | Found Alien Energy Cannon 40305 | -2/Quarantine | P-80 Master assimilated allied K-01 Serf 40308 | -2/Quarantine | P-80 Master assimilated allied K-01 Serf 40315 | -2/Quarantine | P-80 Master assimilated allied K-01 Serf 40318 | -2/Quarantine | Reprogrammed and armed K-01 Serf 40332 | -2/Quarantine | Reprogrammed and armed K-01 Serf 40446 | -2/Quarantine | Discovered new exit (range 6) 40446 | -2/Quarantine | Discovered new exit (range 7) 40451 | -2/Quarantine | Identified exit to Protoforge 40459 | -2/Quarantine | Entered Protoforge 40459 | -2/Protoforge | Accompanied by 4 allies 40459 | -2/Protoforge | Spotted Hotshot 40459 | -2/Protoforge | Spotted Hotshot 40459 | -2/Protoforge | Spotted Hotshot 40460 | -2/Protoforge | Spotted Hotshot 40461 | -2/Protoforge | Spotted Hotshot 40463 | -2/Protoforge | Superfortress began startup sequence 40468 | -2/Protoforge | Allies destroyed Hotshot 40477 | -2/Protoforge | Allies destroyed Hotshot 40479 | -2/Protoforge | Destroyed Hotshot 40497 | -2/Protoforge | Allies destroyed Hotshot 40497 | -2/Protoforge | Allies destroyed Hotshot 40590 | -2/Protoforge | Discovered new exit (range 24) 40643 | -2/Protoforge | Identified exit to Access 40647 | -2/Protoforge | Initialized slip node 40757 | -2/Protoforge | Reprogrammed and armed K-01 Serf 40827 | -2/Protoforge | Reprogrammed and armed K-01 Serf 40859 | -2/Protoforge | P-80 Master assimilated allied K-01 Serf 40865 | -2/Protoforge | Lost 3 allies 40868 | -2/Protoforge | Reprogrammed and armed K-01 Serf 40870 | -2/Protoforge | Reprogrammed and armed K-01 Serf 40971 | -2/Protoforge | Found Prototype Ballistic Gun 40971 | -2/Protoforge | Identified Cep. XC Strikerail 40987 | -2/Protoforge | Found Cep. XC Strikerail 41011 | -2/Protoforge | Spotted Decapitator 41016 | -2/Protoforge | Allies destroyed Decapitator 41019 | -2/Protoforge | Spotted Hotshot 41020 | -2/Protoforge | Destroyed Hotshot 41068 | -2/Protoforge | Additional patrols dispatched to research labs 41088 | -2/Protoforge | Crushed by falling debris 41119 | -2/Protoforge | Lost 3 parts (3u) 41178 | -2/Protoforge | Spotted Decapitator 41179 | -2/Protoforge | Spotted Decapitator 41179 | -2/Protoforge | Spotted Decapitator 41179 | -2/Protoforge | Spotted Decapitator 41180 | -2/Protoforge | Destroyed Decapitator 41181 | -2/Protoforge | Destroyed Decapitator 41181 | -2/Protoforge | Destroyed Decapitator 41186 | -2/Protoforge | Destroyed Decapitator 41229 | -2/Protoforge | Found Prototype Device 41243 | -2/Protoforge | Spotted Decapitator 41243 | -2/Protoforge | Spotted Decapitator 41243 | -2/Protoforge | Spotted Decapitator 41252 | -2/Protoforge | Spotted Immortal 41252 | -2/Protoforge | Spotted Immortal 41259 | -2/Protoforge | Destroyed Decapitator 41259 | -2/Protoforge | Destroyed Decapitator 41262 | -2/Protoforge | Destroyed Decapitator 41376 | -2/Protoforge | Lost 3 parts (1n1u1w) 41406 | -2/Protoforge | Found Cep. Melee Reflex Suite 41411 | -2/Protoforge | Identified Crosscalibrator 41413 | -2/Protoforge | Found Prototype Device 41414 | -2/Protoforge | Identified Mni. Quantum Capacitor 41417 | -2/Protoforge | Found Femtoactuators 41428 | -2/Protoforge | Found Faulty Femtoactuators 41430 | -2/Protoforge | Found Mni. Quantum Capacitor 41433 | -2/Protoforge | Found Cep. Weapon Articulator 41439 | -2/Protoforge | Found Cep. Networked Targeting System 41446 | -2/Protoforge | Found Cep. Hypertargeting System 41452 | -2/Protoforge | Found Femtoactuators 41458 | -2/Protoforge | Spotted V762-n 41476 | -2/Protoforge | Destroyed V762-n 41479 | -2/Protoforge | Found Cep. Melee Reflex Suite 41570 | -2/Protoforge | Destroyed Immortal 41576 | -2/Protoforge | Destroyed Immortal 41583 | -2/Protoforge | Found Corrupted Prototype Piercing Weapon 41592 | -2/Protoforge | Found Cep. Core Shell 41624 | -2/Protoforge | Found Prototype Launcher 41624 | -2/Protoforge | Identified Cep. Rapid Grenade Launcher 41633 | -2/Protoforge | Found Cep. Tiamat Rocket Array 41635 | -2/Protoforge | Found Faulty Cep. Smart ZDS 41639 | -2/Protoforge | Found Faulty Cep. Smart ZDS 41717 | -2/Protoforge | Build established: Scavenger-Mutant 41835 | -2/Protoforge | Found Cep. Reaction Jets 41840 | -2/Protoforge | Found Faulty Cep. Reaction Jets 41845 | -2/Protoforge | Found Exp. Force Field 41862 | -2/Protoforge | Spotted V868-i 41862 | -2/Protoforge | Spotted V695-s 41862 | -2/Protoforge | Spotted V130-v 41979 | -2/Protoforge | Spotted Decapitator 41982 | -2/Protoforge | Spotted V276-c 41982 | -2/Protoforge | Spotted V722-k 41989 | -2/Protoforge | Spotted Decapitator 41990 | -2/Protoforge | Spotted Decapitator 41994 | -2/Protoforge | Destroyed Decapitator 41994 | -2/Protoforge | Destroyed Decapitator 42003 | -2/Protoforge | Destroyed Decapitator 42026 | -2/Protoforge | Destroyed V276-c 42030 | -2/Protoforge | Identified Exp. Jetlance 42056 | -2/Protoforge | Destroyed V722-k 42099 | -2/Protoforge | Found Spectral Analyzer 42310 | -2/Protoforge | Found Cep. NT7 Matterbank 42312 | -2/Protoforge | Found Cep. Chromion Battery 42317 | -2/Protoforge | Found Prototype Storage 42317 | -2/Protoforge | Identified Cep. Antigrav Storage Unit 42321 | -2/Protoforge | Found Cep. Matter Streamer 42345 | -2/Protoforge | Spotted V535-n 42345 | -2/Protoforge | Spotted V260-z 42355 | -2/Protoforge | System corruption reached 10% 42370 | -2/Protoforge | Destroyed V535-n 42389 | -2/Protoforge | Destroyed V260-z 42394 | -2/Protoforge | Found Cep. Projectile Intercept Suite 42399 | -2/Protoforge | Lost 3 parts (1n2u) 42401 | -2/Protoforge | Found Adv. Powered Armor 42406 | -2/Protoforge | Found Cep. RG22 Armor 42410 | -2/Protoforge | Found Prototype Device 42410 | -2/Protoforge | Identified Exp. Weapon Cycler 42459 | -2/Protoforge | First assault squad dispatched 42459 | -2/Protoforge | Spotted V101-f 42460 | -2/Protoforge | Found Cep. Antigrav Storage Unit 42474 | -2/Protoforge | Destroyed V101-f 42479 | -2/Protoforge | Found Prototype Protection 42479 | -2/Protoforge | Identified Centrium Heavy Armor Plating 42483 | -2/Protoforge | Found Cep. NT7 Matterbank 42617 | -2/Protoforge | Lost 3 parts (1n2u) 42630 | -2/Protoforge | System corruption reached 30% 42637 | -2/Protoforge | Destroyed 12 combat bots 42661 | -2/Protoforge | Forge Plexus network access discovered 42676 | -2/Protoforge | Lost 3 parts (3n) 42731 | -2/Protoforge | Spotted Decapitator 42735 | -2/Protoforge | Destroyed Decapitator 42803 | -2/Protoforge | Spotted V414-o 42947 | -2/Protoforge | Spotted Immortal 42959 | -2/Protoforge | Destroyed Immortal 42960 | -2/Protoforge | Spotted V244-y 42963 | -2/Protoforge | Spotted V280-l 42967 | -2/Protoforge | Spotted V098-z 42968 | -2/Protoforge | Core integrity fell below 50% 42981 | -2/Protoforge | Destroyed V244-y 42981 | -2/Protoforge | Destroyed V280-l 43028 | -2/Protoforge | Destroyed V098-z 43048 | -2/Protoforge | Lost 10 parts (3p1n2u4w) 43082 | -2/Protoforge | Found Exp. Terror Saw 43087 | -2/Protoforge | Found Cep. XC Strikerail 43089 | -2/Protoforge | Found Faulty Cep. Deflector Sword 43091 | -2/Protoforge | Found Exp. Jetlance 43097 | -2/Protoforge | Found Faulty Cep. Deflector Sword 43111 | -2/Protoforge | Found Prototype Device 43111 | -2/Protoforge | Identified Exp. Actuator Array 43129 | -2/Protoforge | Found Exp. Core Analyzer 43132 | -2/Protoforge | Found Prototype Device 43132 | -2/Protoforge | Identified Cep. Antimissile System 43137 | -2/Protoforge | Found Cep. Deflector Sword 43141 | -2/Protoforge | Found Faulty Cep. Miniperforator 43147 | -2/Protoforge | Found Cep. Miniperforator 43154 | -2/Protoforge | Found Faulty Cep. Plasma Driver 43159 | -2/Protoforge | Found Faulty Cep. Plasma Driver 43370 | -2/Protoforge | Found Cep. Zero-point Core 43387 | -2/Protoforge | Found Faulty Cep. Zero-point Core 43423 | -2/Protoforge | Spotted AP7-3 43423 | -2/Protoforge | Spotted AP7-3 43567 | -2/Protoforge | Destroyed AP7-3 43569 | -2/Protoforge | Destroyed AP7-3 43607 | -2/Protoforge | Found Faulty Cep. Cloak Mesh 43609 | -2/Protoforge | Found Faulty Cep. Cloak Mesh 43615 | -2/Protoforge | Found Cep. Thermoelectric Network 43618 | -2/Protoforge | Found Cep. Blasthammer 43624 | -2/Protoforge | Found Prototype Energy Cannon 43739 | -2/Protoforge | Identified Cld. Directed Potential Cannon 43846 | -2/Protoforge | Found Faulty Cld. Directed Potential Cannon 44128 | -2/Protoforge | Found Faulty Cep. Blasthammer 44192 | -2/Protoforge | Found Faulty Cep. Zero-point Core 44286 | -2/Protoforge | Found Cep. Plasma Driver 44376 | -2/Protoforge | Destroyed 9 combat bots 44388 | -2/Protoforge | Destroyed V414-o 44408 | -2/Protoforge | Found Cep. Biometal Exoskeleton 44482 | -2/Protoforge | High security lockdown imminent 44562 | -2/Protoforge | High security lockdown engaged 44567 | -2/Protoforge | Found Cep. Network Penetrator 44570 | -2/Protoforge | Found Cep. Network Penetrator 44596 | -2/Protoforge | Found Exp. Active Sensor Suite 44601 | -2/Protoforge | Identified Hpw. Transdimensional Reconstructor 44601 | -2/Protoforge | Warped through subspace to slip node 44601 | -2/Protoforge | Spotted Decapitator 44601 | -2/Protoforge | Spotted Decapitator 44602 | -2/Protoforge | Entered Access 44602 | -1/Access | Evolved 2 slots: Utility x1, Weapon x1 44843 | -1/Access | Identified exit to Command 44852 | -1/Access | Fabricated IN-MT5's Pitchfork "Insurrection" (x1) 44852 | -1/Access | First assault squad dispatched 44864 | -1/Access | Spotted Striker 44891 | -1/Access | Reprogrammed and armed K-01 Serf 44919 | -1/Access | Reprogrammed and armed K-01 Serf 44980 | -1/Access | Identified Subatomic Replicator 44980 | -1/Access | Used Subatomic Replicator to replicate IN-MT5's Pitchfork "Insurrection" 45071 | -1/Access | Reprogrammed and armed K-01 Serf 45081 | -1/Access | Destroyed 17 combat bots 45100 | -1/Access | Reprogrammed and armed K-01 Serf 45126 | -1/Access | Build established: Wizard-Assassin 45292 | -1/Access | Reprogrammed and armed K-01 Serf 45312 | -1/Access | Spotted Executioner 45312 | -1/Access | Spotted Executioner 45321 | -1/Access | Destroyed Executioner 45323 | -1/Access | Destroyed Executioner 45343 | -1/Access | Lost 3 allies 45344 | -1/Access | Destroyed 8 combat bots 45348 | -1/Access | Found Exp. Core Analyzer 45353 | -1/Access | Spotted Executioner 45353 | -1/Access | Spotted Executioner 45355 | -1/Access | Destroyed Executioner 45357 | -1/Access | Destroyed Executioner 45413 | -1/Access | Spotted Striker 45419 | -1/Access | Spotted Striker 45434 | -1/Access | Destroyed Striker 45444 | -1/Access | Destroyed Striker 45477 | -1/Access | Destroyed 13 combat bots 45516 | -1/Access | Destroyed 7 combat bots 45542 | -1/Access | Reprogrammed and armed K-01 Serf 45611 | -1/Access | Reprogrammed and armed K-01 Serf 45613 | -1/Access | High security lockdown imminent 45647 | -1/Access | Discovered new exit (range 10) 45649 | -1/Access | Destroyed 11 combat bots 45664 | -1/Access | Reprogrammed and armed K-01 Serf 45693 | -1/Access | High security lockdown engaged 45891 | -1/Access | Destroyed 11 combat bots 45957 | -1/Access | Entered Command 46015 | -1/Command | Crushed by falling debris 46046 | -1/Command | Lost 4 parts (1p2u1w) 46061 | -1/Command | High security lockdown imminent 46129 | -1/Command | Spotted M Guard 46129 | -1/Command | Spotted M Guard 46135 | -1/Command | Spotted Combat Programmer 46135 | -1/Command | Spotted Combat Programmer 46141 | -1/Command | High security lockdown engaged 46143 | -1/Command | Destroyed Combat Programmer 46147 | -1/Command | Destroyed Combat Programmer 46155 | -1/Command | Destroyed M Guard 46199 | -1/Command | Destroyed M Guard 46199 | -1/Command | All MAIN.C guards destroyed 46210 | -1/Command | Spotted Striker 46227 | -1/Command | Lost 6 parts (2p2u2w) 46241 | -1/Command | Met MAIN.C 46265 | -1/Command | Released all parts (15) 46307 | -1/Command | Core integrity fell below 50% 46309 | -1/Command | Spotted Executioner 46309 | -1/Command | Spotted Executioner 46309 | -1/Command | Spotted Striker 46317 | -1/Command | Core integrity fell below 20% 46322 | -1/Command | System corruption reached 10% 46323 | -1/Command | Destroyed by Striker with Compact Linear Accelerator Last Messages --------------- 46306_ B-74 Champion unfolds itself. 46306_ G-73 Enforcer unfolds itself. 46306_ E-15 Imp unfolds itself. 46306_ Slammed into MAIN.C. 46309_ Slammed into G-73 Enforcer. 46312_ Broken Exp. Armored Exoskeleton destroyed. 46312_ Slammed into G-73 Enforcer. 46312_ Destabilizing: System interference. 46312_ Cep. Phasing Heat Sink temporarily disabled. 46313_ E-15 Imp destroyed. 46313_ Acquired Biometal Leg+. 46315_ Acquired Enh. Biometal Leg. 46317_ Knocked back. 46317_ Kicked MAIN.C. 46317_ Biometal Leg+ destroyed. 46319_ Knocked back. 46321_ Cep. Blasthammer destroyed. 46321_ Enh. Biometal Leg destroyed. 46322_ Acquired Unknown Flight Unit. 46322_ Identified Cesium-ion Thruster. Map ----- +----------------------------------------------------+ | ?????????????????????????????????????????????????? | | ?????????????????????????????????????????????????? | | ?????????????????????????????????????????????????? | | ?????????????????????????????????????????????????? | | ?????????????????????????????????????????????????? | | ?????????????????????????????????????????????????? | | ????????????????????????????????? ?????????????? | | ????????????????????????????????? ?????????????? | | ????????????????????????????????? #????????????? | | ????????????????????????????????? #????????????? | | ????????????????????????????????# #????????????? | | ????????????????????????????????# #????????????? | | ????????????????????????????????# #????????????? | | ????????????????????????????????# #????????????? | | ????????????????????????????????# #????????????? | | ????????????????????????????????# #????????????? | | ????????????????????????????????# #????????????? | | #####???????????????????????????# ###??????????? | | ?????????????????????????? ##?????????? | | ????????????????????????? #?????????? | | #######################?? #?????????? | | " g #??# #?????????? | | " =MM#?? # #???##????? | | " |MMM### ##### ###??? | | ###################MMM## # ###? | | ????????????????#g@=%K# # # ## | | ?????????????????###ggg## # # | | ????????????????????#bggg# ### # | | """"?????????????????????# lE## # # | | """"?????????????????????# mE%C | | """??????????????????????# gg | | " ???????????????????????# | | "????????????????????????# | | "????????????????????????# | | ?????????????????????????# ###% # # | | ?????????????????????????###### # # | | ??????????????????????????????? ##### # # ## | | ???????????????????????????????## #???## # ##? | | ????????????????????????????????# #????#######?? | | ????????????????????????????????? #????????????? | | ????????????????????????????????? #????????????? | | ?????????????????????????????????? #????????????? | | ?????????????????????????????????? #????????????? | | ??????????????????????????????????? #????????????? | | ??????????????????????????????????? #????????????? | | ??????????????????????????????????? #????????????? | | ????????????????????????????????????#????????????? | | ?????????????????????????????????????????????????? | | ?????????????????????????????????????????????????? | | ?????????????????????????????????????????????????? | +----------------------------------------------------+ Best States ------------- Heat Dissipation 136 Coolant Potential 100 Energy Generation 89 Energy Capacity 1890 Matter Stores 600 Matter Capacity 600 Sight Range 24 Robot Scan Range 20 Terrain Scan Range 24 Terrain Scan Density 1210 Jamming Range 14 Cloak Strength 9 Corruption Containment 12 Corruption Block 20 Armor Coverage 975 Resistance: TH 50 Resistance: EM 25 Core Shielding 90 Utility Shielding 66 Weapon Shielding 90 Point Defense Rating 480 Projectile Deflection 15 Weapon Cycling 30 Melee Speed Boost 50 Phase Shifting 20 Evasion (%) 104 Targeting Accuracy 30 Melee Accuracy 8 Core Analysis 8 Kinecelleration 40 Salvage Targeting 5 Offensive Hacking 100 Relay Coupler Types 2 Relay Coupler Value 74 Authchip Count 6 Item Schematics ----------------- Hcp. Storage Unit | -10/Materials | Hacked IN-MT5's Pitchfork "Insurrection" | -9/Scraptown | Archive CPS Tube | -6/Factory | Scanalyzed Multitool | -6/Factory | Scanalyzed Hrd. Heavy Armor Plating | -6/Factory | Scanalyzed Hvy. Assault Cannon | -6/Factory | Hacked Exp. Targeting Computer | -6/Factory | Scanalyzed Scatter Rocket Array | -6/Factory | Scanalyzed Med. Armored Exoskeleton | -5/Garrison | Hacked Imp. Weapon Shielding | -3/Testing | Scanalyzed Hvy. Armored Exoskeleton | -3/Testing | Hacked Adv. Powered Armor | -3/Testing | Hacked Gravity Neutralizer | -3/Testing | Archive Tiamat Missile Launcher | -3/Testing | Archive Imp. Matter Neutralizer | -3/Testing | Archive Enh. Coil Gun | -3/Testing | Archive Enh. Biometal Leg | -3/Testing | Archive Spectral Analyzer | -3/Testing | Archive Cld. Nuclear Pulse Thruster | -3/Testing | Archive Exp. Thermal Shield | -3/Testing | Archive Enh. Armored Leg | -3/Testing | Archive Enh. Force Rifle | -3/Testing | Archive Adv. Plasma Rifle | -3/Testing | Archive Centrium Light Armor Plating | -2/Quarantine | Archive Adv. KE Penetrator | -2/Quarantine | Archive Cld. Field Propulsion Drive | -2/Quarantine | Archive Exp. Core Analyzer | -2/Quarantine | Archive Shock Maul | -2/Quarantine | Archive Imp. Quantum Reactor | -2/Quarantine | Archive Com. Mass Driver | -2/Quarantine | Archive Hvy. Gatling Laser | -2/Quarantine | Archive Adv. Variable Charge Gun | -2/Quarantine | Archive Hds. Centrium Heavy Treads | -2/Quarantine | Archive Exp. Reaction Control System | -2/Quarantine | Archive Cld. Q-thruster | -2/Quarantine | Archive Cld. Antigrav System | -2/Quarantine | Archive Com. Linear Accelerator | -2/Quarantine | Archive Exp. Signal Interpreter | -2/Quarantine | Archive Adv. EM Disruption Field | -2/Protoforge | Archive Lgt. Antimatter Cannon | -2/Protoforge | Archive Hds. Centrium Leg | -2/Protoforge | Archive Cld. Proton Cannon | -2/Protoforge | Archive Enh. Multireflex Exoskeleton | -2/Protoforge | Archive Adv. Gravity Neutralizer | -2/Protoforge | Archive Cld. Plasma Rifle | -2/Protoforge | Archive Exp. Biometal Medium Treads | -2/Protoforge | Archive Vortex Chain Reactor | -2/Protoforge | Archive Exp. Coolant Injector | -2/Protoforge | Archive Point Singularity Launcher | -2/Protoforge | Archive Cld. Linear Gravjet | -2/Protoforge | Archive Quantum Shading Machine | -2/Protoforge | Archive Centrium Heavy Armor Plating | -2/Protoforge | Archive Robot Schematics ------------------ K-01 Serf | -6/Factory | Hacked B-74 Champion | -3/Testing | Archive A-02 Transporter | -3/Testing | Archive T-07 Excavator | -3/Testing | Archive G-67 Veteran | -3/Testing | Archive D-83 Annihilator | -2/Quarantine | Archive A-27 Freighter | -2/Quarantine | Archive M-36 Artificer | -2/Quarantine | Archive C-65 Expert | -2/Protoforge | Archive G-73 Enforcer | -2/Protoforge | Archive S-43 Plague | -2/Protoforge | Archive R-06 Scavenger | -2/Protoforge | Archive Fabricated ------------ IN-MT5's Pitchfork "Insurrection" | x1 | -6/Factory | Authchip IN-MT5's Pitchfork "Insurrection" | x1 | -5/Factory | Authchip K-01 Serf | x4 | -5/Factory | Authchip IN-MT5's Pitchfork "Insurrection" | x1 | -5/Factory | Authchip Med. Armored Exoskeleton | x1 | -5/Factory | Authchip IN-MT5's Pitchfork "Insurrection" | x1 | -4/Factory | Authchip IN-MT5's Pitchfork "Insurrection" | x1 | -3/Research | Authchip IN-MT5's Pitchfork "Insurrection" | x1 | -3/Research IN-MT5's Pitchfork "Insurrection" | x1 | -1/Access Repaired ---------- Aluminum Leg | 60% | -10/Materials CPS Tube | 99% | -6/Factory | Broken Scatter Rocket Array | 99% | -6/Factory | Broken Med. Armored Exoskeleton | 42% | -4/Extension Centrium Medium Armor Plating | 51% | -2/Quarantine Studied --------- Carbon-fiber Leg | -6/Factory | Hacked Med. Armored Exoskeleton | -3/Research | Hacked Quantum Reactor | -3/Research | Hacked Biometal Leg | -3/Research | Hacked Adv. Remote Datajack | -3/Testing | Hacked Shield Leg | -3/Testing | Hacked Lgt. Antimatter Reactor | -3/Testing | Hacked Alien Tech Used ----------------- Core Stripper Sigix Broadsword Dimensional Node Initializer Matter Drive High-powered Transdimensional Reconstructor Subatomic Replicator Achievements -------------- Disruptive Presence Challenges ------------ None Game ------ Seed ClaymoresSapperTriangulator Manual? 0 Play Time 11:45:28 Cumulative 1099.5 hours Start 2025.11.22 @ 17:16:54 End 2025.11.24 @ 04:08:59 Sessions 7 Manual Loads 0 Difficulty Rogue Special Mode None Game No. 389 Rogue 384 Adventurer 4 Explorer 1 Win Type - Total 23 Types 13/3/1/2/0/1/0/0/2/1 Lore% 96 Gallery% 95 Achievement% 81 Wizard Run 0 Options --------- Layout 0 ASCII 0 Keyboard 0 Movement Numpad Keybinds 0 Fullscreen 2 Font 18/SmallcapsGlow Map View 76x50 Zoom Use 0% Tactical HUD 1 Map Filters NONE Filters NONE Steam 1 RUN: f81be4aa-fd33-4a3a-a5bf-82b858c4fdb3